Cogmind - Beta 14 @@@ ROGUE MODE // 2024.09.30 @ 21:36:34 Player: Lunace Result: Destroyed by X-87 Electro with Compact HERF Cannon Performance ------------- Evolutions (9) 4500 Regions Visited (35) 7000 Robots Destroyed (128) 640 Value Destroyed (4947) 4947 Prototype IDs (73) 1460 Alien Tech Used (6) 1200 Bonus (9108) 9108 TOTAL SCORE: 28855 Bonus ------- High Alert Combat Kills 564 Follower Combat Kills 980 Entered Garrisons 200 Met Imprinter 300 Acquired ECA 300 Met Zhirov 300 Met Warlord at Base 500 MAIN.C Attacked Warlord 500 Warlord Defense Kills 148 Met Warlord at Research 2000 Invited to Help at Command 2000 Met Sigix 2000 Friendly Fire -684 Cogmind --------- Core Integrity 0/1600 Matter 261/300 Energy 61/100 System Corruption 24% Temperature Cool (9) Movement Core (50) Location -1/Command Parts ------- > --- POWER (2) -------- (None) > --- PROPULSION (9) --- (None) > --- UTILITY (12) ----- Advanced Signal Interpreter > --- WEAPON (2) ------- (None) > --- INVENTORY (5) ---- Dimensional Node Initializer Sigix Containment Pod Sigix Containment Pod Peak State ------------ > --- POWER ------------ Light Quantum Reactor Light Quantum Reactor > --- PROPULSION ------- Q-thruster Improved Diametric Drive Impulse Thruster Array Impulse Thruster Array Impulse Thruster Array Experimental Q-thruster > --- UTILITY ---------- Advanced Cooling System Medium Storage Unit Structural Scanner Experimental Optical Array Advanced Sensor Array Advanced Signal Interpreter Advanced Transmission Jammer Centrium Light Armor Plating Advanced Hacking Suite Advanced Hacking Suite System Mapper Ghost Barrier > --- WEAPON ----------- Sigix Broadsword > --- INVENTORY -------- Light Quantum Reactor Impulse Thruster Array Beam Splitter Dimensional Node Initializer Transdimensional Reconstructor High-powered Transdimensional Reconstructor Subatomic Replicator Sigix Containment Pod [Rating: 204] Favorites ----------- Power Light Quantum Reactor Engine Ion Engine Power Core Light Nuclear Core Reactor Light Quantum Reactor Propulsion Light Treads Treads Light Treads Flight Unit Cooled VTOL Module Utility Advanced Hacking Suite Device Structural Scanner Storage Medium Storage Unit Processor Enhanced Optical Array Hackware Advanced Hacking Suite Protection Centrium Light Armor Plating Weapon Heavy Assault Rifle Energy Gun EM Pulse Gun Energy Cannon Compact Ion Cannon Ballistic Gun Heavy Assault Rifle Ballistic Cannon Perforator Launcher Heavy Rocket Launcher Special Weapon RU-N14's Throwing Claymores v3 Slashing Weapon Power Sword Piercing Weapon Plasma Lance Special Melee Weapon Advanced Datajack Build | -11 -10 -10 -9 -9 -9 -8 -7 -7 -7 -7 -7 -7 -7 -6 -6 -6 -6 -5 -5 -5 -5 -5 -5 -4 -4 -4 -4 -4 -3 -3 -3 -2 -2 -1 -1 ------- Run | Yrd Mat Min Mat Sto Gar Mat Fac Was Fac Low Low Zio Dee Pro Fac Was Fac Fac Was Fac Upp Upp Zhi Pro Fac Upp Upp War Pro Res Qua Res Tes Acc Com Slots Evolved 18 | . . . 2 . . 2 2 . . . . . . . 2 . . 2 . . . . . . 2 . . . . 2 . 2 . 2 . Power 1 | . . . . . . . . . . . . . . . . . . 1 . . . . . . . . . . . . . . . . . Propulsion 7 | . . . 2 . . . . . . . . . . . . . . 1 . . . . . . 1 . . . . 1 . 1 . 1 . Utility 10 | . . . . . . 2 2 . . . . . . . 2 . . . . . . . . . 1 . . . . 1 . 1 . 1 . Weapon . | . . . . . . . . . . . . . . . . . . . . . . . . . . . . . . . . . . . . Parts Attached 212 | 7 6 . 6 9 10 10 16 . 1 2 1 4 2 . 14 . 8 4 4 11 . . 5 . 11 . 1 16 10 11 9 10 13 7 4 Power 30 | 1 2 . 1 . 1 1 2 . . . . . . . 2 . 2 2 . 3 . . 3 . 4 . . 2 . 1 1 . . . 2 Engine 12 | 1 2 . 1 . 1 1 2 . . . . . . . 2 . . . . 1 . . 1 . . . . . . . . . . . . Core 8 | . . . . . . . . . . . . . . . . . 2 2 . 2 . . 1 . 1 . . . . . . . . . . Reactor 10 | . . . . . . . . . . . . . . . . . . . . . . . 1 . 3 . . 2 . 1 1 . . . 2 Propulsion 62 | 2 1 . 5 3 5 4 5 . . . . 2 . . 2 . 5 1 . 3 . . . . 2 . . 2 3 6 1 5 2 2 1 Treads 20 | 2 1 . 5 3 5 4 . . . . . . . . . . . . . . . . . . . . . . . . . . . . . Leg . | . . . . . . . . . . . . . . . . . . . . . . . . . . . . . . . . . . . . Wheel . | . . . . . . . . . . . . . . . . . . . . . . . . . . . . . . . . . . . . Hover . | . . . . . . . . . . . . . . . . . . . . . . . . . . . . . . . . . . . . Flight 42 | . . . . . . . 5 . . . . 2 . . 2 . 5 1 . 3 . . . . 2 . . 2 3 6 1 5 2 2 1 Utility 89 | 2 1 . . 2 3 3 9 . . . 1 2 1 . 9 . 1 1 4 4 . . 2 . 5 . 1 6 6 3 4 4 9 5 1 Device 44 | 1 . . . . 1 1 3 . . . . . . . 4 . . . 2 1 . . . . 2 . 1 5 6 3 3 3 5 3 . Storage 3 | 1 1 . . . . . . . . . . . . . . . . . . . . . . . 1 . . . . . . . . . . Processor 7 | . . . . . . . 1 . . . . . . . 2 . . . 1 . . . . . 1 . . . . . . . 1 1 . Hackware 21 | . . . . . . 1 4 . . . 1 1 . . 3 . 1 1 1 3 . . 1 . 1 . . 1 . . . 1 1 . . Protection 14 | . . . . 2 2 1 1 . . . . 1 1 . . . . . . . . . 1 . . . . . . . 1 . 2 1 1 Artifact . | . . . . . . . . . . . . . . . . . . . . . . . . . . . . . . . . . . . . Weapon 31 | 2 2 . . 4 1 2 . . 1 2 . . 1 . 1 . . . . 1 . . . . . . . 6 1 1 3 1 2 . . Energy Gun 5 | 1 . . . . . 1 . . . . . . . . . . . . . . . . . . . . . 3 . . . . . . . Energy Cannon 4 | . . . . 2 . . . . 1 . . . 1 . . . . . . . . . . . . . . . . . . . . . . Ballistic Gun 4 | 1 2 . . 1 . . . . . . . . . . . . . . . . . . . . . . . . . . . . . . . Ballistic Cannon 1 | . . . . . . . . . . . . . . . . . . . . . . . . . . . . . . . . . 1 . . Launcher 4 | . . . . 1 1 1 . . . . . . . . . . . . . 1 . . . . . . . . . . . . . . . Special Weapon 2 | . . . . . . . . . . . . . . . . . . . . . . . . . . . . 2 . . . . . . . Impact Weapon . | . . . . . . . . . . . . . . . . . . . . . . . . . . . . . . . . . . . . Slashing Weapon 4 | . . . . . . . . . . . . . . . 1 . . . . . . . . . . . . . . . 1 1 1 . . Piercing Weapon 4 | . . . . . . . . . . 1 . . . . . . . . . . . . . . . . . 1 1 . 1 . . . . Special Melee Weapon 3 | . . . . . . . . . . 1 . . . . . . . . . . . . . . . . . . . 1 1 . . . . Unidentified Prototypes 25 | . . . . 1 . . 1 . . . . . . . . . 1 . 1 . . . 4 . . . 1 9 . . 3 1 3 . . Parts Lost 43 | . . . . . 2 1 5 . . . 1 . 5 . 1 . 2 1 . 5 2 . . . . . . 1 . . . 1 . 3 13 Power 7 | . . . . . . . 1 . . . . . . . . . . . . 3 . . . . . . . . . . . . . . 3 Propulsion 16 | . . . . . 1 . 3 . . . 1 . 1 . . . 1 . . 1 . . . . . . . 1 . . . 1 . 1 5 Utility 15 | . . . . . 1 . 1 . . . . . 2 . 1 . 1 1 . 1 1 . . . . . . . . . . . . 2 4 Weapon 5 | . . . . . . 1 . . . . . . 2 . . . . . . . 1 . . . . . . . . . . . . . 1 Highest Loss Streak 13 | . . . . . 2 1 5 . . . 1 . 5 . 1 . 2 1 . 3 1 . . . . . . 1 . . . 1 . 2 13 To Critical Strikes . | . . . . . . . . . . . . . . . . . . . . . . . . . . . . . . . . . . . . Average Slot Usage (%) 90 | . 100 100 99 99 99 99 58 69 71 81 69 75 77 46 87 86 86 81 84 87 78 76 82 88 84 84 84 91 82 90 99 92 86 81 63 Engine 5 | . 14 14 11 11 11 9 2 7 7 7 . . . . 4 6 1 . . 1 . . . . . . . 3 . . . . . . . Reactor 2 | . . . . . . . . . . . . . . . . . . . . . . . 2 5 4 5 5 5 5 4 8 8 8 8 5 Treads 13 | . 28 28 43 43 43 36 . . . . . . . . . . . . . . . . . . . . . . . . . . . . . Flight 15 | . . . . . . . 15 15 15 15 7 13 21 15 22 26 25 23 23 22 23 23 23 23 25 26 26 29 28 33 33 30 26 23 16 Device 11 | . 14 14 11 1 8 12 10 7 7 7 7 7 7 7 19 13 13 11 13 12 11 11 11 11 13 15 15 11 9 14 13 13 13 13 4 Storage 6 | . 14 14 11 11 11 9 . . . . . . . . . . . . . . . . . . 2 5 5 5 5 4 4 4 4 4 3 Processor 5 | . . . . . . . 2 7 7 7 7 7 5 . 10 13 13 11 11 9 5 5 5 5 8 10 10 10 10 9 9 8 8 7 7 Hackware 12 | . . . . . . 4 17 30 30 30 30 27 23 23 21 20 20 16 17 21 25 23 25 29 20 15 15 18 21 19 18 16 17 16 15 Protection 2 | . . . . 9 2 9 . . . . . 2 5 . . . . . . . . . . . . . . . . . . 4 3 4 8 Energy Cannon 2 | . . . . 3 11 9 6 . 2 . . . 4 . . . . . . . . . . . . . . . . . . . . . . Ballistic Gun 5 | . 25 28 22 16 . . . . . . . . . . . . . . . . . . . . . . . . . . . . . . . Launcher 1 | . . . . 1 11 5 . . . . . . . . . . . . . 2 . . . . . . . . . . . . . . . Slashing Weapon 1 | . . . . . . . . . . . . . . . 5 6 6 5 5 5 5 5 5 5 5 5 5 4 . . . 2 4 4 2 Peak Build Rating 204 | 7 11 13 16 22 33 42 44 27 32 34 34 39 42 22 71 61 67 68 80 89 84 73 90 88 100 93 95 123 110 147 165 185 191 204 200 Average Rating 74 | 5 9 11 15 18 30 40 27 26 27 33 29 33 38 22 61 61 61 67 74 83 75 73 81 88 94 93 93 106 99 120 150 171 186 198 166 On Entrance 68 | . 7 11 13 16 22 32 38 26 27 27 34 30 39 22 22 61 61 63 66 79 84 73 73 88 88 93 93 94 102 108 147 153 182 189 200 Naked Turns . | . . . . . . . . . . . . . . . . . . . . . . . . . . . . . . . . . . . . Heaviest Build 78 | 15 52 52 54 59 74 78 27 8 8 11 11 8 10 1 20 13 14 21 22 23 18 10 29 28 36 31 31 46 30 47 50 57 57 61 61 Greatest Support 94 | 40 40 40 80 80 90 94 20 11 11 11 11 22 16 16 28 28 28 22 22 31 31 31 31 35 36 42 42 37 37 52 52 62 62 69 61 Greatest Overweight (x) 1 | . 1 1 . . 1 . 1 . . . . . . . . . . . . . . . . . . . . 1 . . . . . . . Average Overweight (x) . | . . 1 . . . . . . . . . . . . . . . . . . . . . . . . . . . . . . . . . Largest Inventory Capacity 20 | 8 20 20 20 20 20 20 20 5 5 5 5 5 5 5 5 5 5 5 5 5 5 5 5 5 10 10 10 10 10 10 10 10 10 10 10 Average Capacity 11 | 7 13 20 20 20 20 20 5 5 5 5 5 5 5 5 5 5 5 5 5 5 5 5 5 5 7 10 10 10 10 10 10 10 10 10 9 Most Carried 20 | . 14 20 20 20 20 20 17 5 5 5 5 5 5 5 4 2 5 5 5 5 3 3 4 3 5 2 6 10 10 10 10 10 10 10 10 Average Carried 9 | . 8 16 19 19 17 17 3 5 4 4 5 5 4 5 1 2 4 3 4 4 3 3 3 3 3 2 3 9 9 9 9 9 9 9 8 Final Capacity 20 | 8 20 20 20 20 20 20 5 5 5 5 5 5 5 5 5 5 5 5 5 5 5 5 5 5 10 10 10 10 10 10 10 10 10 10 5 Final Carried 20 | . 14 20 19 20 17 17 5 5 5 5 5 5 5 5 2 2 4 5 5 3 3 3 3 3 2 2 4 10 10 9 9 10 10 10 5 Class Distribution -------------------- 18% | Scavenger-Mutant 16% | Mutant 14% | Wizard-Ninja 12% | Wizard-Scout 11% | Hacker-Mutant 8% | Hacker-Ninja 6% | Hacker-Sprinter 3% | Hacker-Scout 3% | Commander-Mutant Dominant Class ---------------- Mutant | -10/Materials Mutant | -10/Mines Scavenger-Mutant | -9/Materials Scavenger-Mutant | -9/Storage Scavenger-Mutant | -9/Garrison Scavenger-Mutant | -8/Materials Hacker-Mutant | -7/Factory Hacker-Mutant | -7/Waste Hacker-Mutant | -7/Factory Hacker-Mutant | -7/Lower Caves Hacker-Mutant | -7/Lower Caves Hacker-Mutant | -7/Zion Hacker-Mutant | -7/Deep Caves Hacker-Mutant | -6/Proximity Caves Hacker-Scout | -6/Factory Hacker-Mutant | -6/Waste Hacker-Mutant | -6/Factory Hacker-Sprinter | -5/Factory Hacker-Sprinter | -5/Waste Hacker-Sprinter | -5/Factory Hacker-Sprinter | -5/Upper Caves Hacker-Sprinter | -5/Upper Caves Wizard-Sprinter | -5/Zhirov Wizard-Sprinter | -4/Proximity Caves Hacker-Ninja | -4/Factory Hacker-Ninja | -4/Upper Caves Hacker-Ninja | -4/Upper Caves Wizard-Scout | -4/Warlord Wizard-Scout | -3/Proximity Caves Wizard-Ninja | -3/Research Wizard-Ninja | -3/Quarantine Wizard-Scout | -2/Research Wizard-Ninja | -2/Testing Wizard-Scout | -1/Access Wizard-Scout | -1/Command Resources | -11 -10 -10 -9 -9 -9 -8 -7 -7 -7 -7 -7 -7 -7 -6 -6 -6 -6 -5 -5 -5 -5 -5 -5 -4 -4 -4 -4 -4 -3 -3 -3 -2 -2 -1 -1 ----------- Run | Yrd Mat Min Mat Sto Gar Mat Fac Was Fac Low Low Zio Dee Pro Fac Was Fac Fac Was Fac Upp Upp Zhi Pro Fac Upp Upp War Pro Res Qua Res Tes Acc Com Matter Collected 3096 | 282 283 104 106 228 260 193 105 . . 60 . 10 27 . 148 . 70 40 40 22 31 . 152 13 107 . 30 160 110 105 47 193 110 60 . Remotely . | . . . . . . . . . . . . . . . . . . . . . . . . . . . . . . . . . . . . Salvage Created 5230 | 50 606 79 176 457 469 451 142 . . . . . 27 . 51 . 131 111 58 268 . . 284 13 209 . 30 4 151 187 47 970 195 41 23 Parts 288 | 4 50 5 14 31 32 18 8 . . . . . . . 1 . 3 3 . 19 . . 3 4 10 . 1 . 9 8 3 46 10 3 3 Haulers Intercepted 11 | . 1 . . . . . . . . . . . . . . . 1 1 . . . . . . 1 . . . . 1 . 6 . . . Recyclers Shooed 2 | 1 . . . 1 . . . . . . . . . . . . . . . . . . . . . . . . . . . . . . . Parts Field Recycled . | . . . . . . . . . . . . . . . . . . . . . . . . . . . . . . . . . . . . Retrieved Matter . | . . . . . . . . . . . . . . . . . . . . . . . . . . . . . . . . . . . . Parts Self-Destructed 21 | . . . . . . . . . . 1 . . . . . . . . . . . . 2 4 . . 1 . 13 . . . . . . Prevented . | . . . . . . . . . . . . . . . . . . . . . . . . . . . . . . . . . . . . Kills | -11 -10 -10 -9 -9 -9 -8 -7 -7 -7 -7 -7 -7 -7 -6 -6 -6 -6 -5 -5 -5 -5 -5 -5 -4 -4 -4 -4 -4 -3 -3 -3 -2 -2 -1 -1 ------- Run | Yrd Mat Min Mat Sto Gar Mat Fac Was Fac Low Low Zio Dee Pro Fac Was Fac Fac Was Fac Upp Upp Zhi Pro Fac Upp Upp War Pro Res Qua Res Tes Acc Com Combat Hostiles Destroyed 80 | . 16 2 2 9 18 10 3 . . . . . . . 1 . 2 . 1 9 . . . 2 . . 1 1 2 1 . . . . . Melee 10 | . . . . . . . . . . . . . . . 1 . 2 . 1 . . . . 2 . . 1 . 2 1 . . . . . Guns 25 | . 16 2 2 5 . . . . . . . . . . . . . . . . . . . . . . . . . . . . . . . Cannons 16 | . . . . 2 6 5 3 . . . . . . . . . . . . . . . . . . . . . . . . . . . . AOE 29 | . . . . 2 12 5 . . . . . . . . . . . . . 9 . . . . . . . 1 . . . . . . . Classes Destroyed 15 | 1 5 . 2 1 1 2 . . . . . . . . . . . . . 1 . . . 1 1 . . . . . . . . . . Worker 2 | . 1 . . . . 1 . . . . . . . . . . . . . . . . . . . . . . . . . . . . . Builder 3 | . . . . 3 . . . . . . . . . . . . . . . . . . . . . . . . . . . . . . . Tunneler 3 | 2 1 . . . . . . . . . . . . . . . . . . . . . . . . . . . . . . . . . . Hauler 11 | . 1 . . . . . . . . . . . . . . . 1 1 . . . . . . 1 . . . . 1 . 6 . . . Recycler 4 | . . . 1 1 . . 1 . . . . . . . . . . . . . . . . . . . . . . . . . 1 . . Operator 4 | . . . . . . . . . . . . . . . . . . . . . . . . . 1 . . . . . . 1 1 . 1 Drone 3 | . . . . . . . . . . . . . . . . . . . . . . . . 2 . . . . 1 . . . . . . Watcher 17 | . 1 . 1 1 . . . . . . . . . . 1 . . . . . . . . . 3 . . . . . 1 7 1 1 . Swarmer 25 | . 6 . . 2 6 . 3 . . . . . . . 1 . 2 . . 4 . . . . . . 1 . . . . . . . . Grunt 38 | . 10 2 . 3 11 6 . . . . . . . . . . . . 1 4 . . . . . . . . 1 . . . . . . Brawler 2 | . . . . . . 1 . . . . . . . . . . . . . . . . . . . . . 1 . . . . . . . Duelist 1 | . . . . . . 1 . . . . . . . . . . . . . . . . . . . . . . . . . . . . . Sentry 11 | . . . 2 4 2 2 . . . . . . . . . . . . . . . . . . . . . . . 1 . . . . . Programmer 1 | . . . . . . . . . . . . . . . . . . . . 1 . . . . . . . . . . . . . . . Behemoth 1 | . . . . . 1 . . . . . . . . . . . . . . . . . . . . . . . . . . . . . . Thug 2 | . . . . . . 1 . . . . . . . . . . . . . . . . . . . . . . . . . 1 . . . Best Kill Streak 8 | 1 4 2 3 6 5 6 4 . . . . . . . 1 . 2 1 1 8 . . . 2 1 . 1 1 1 1 1 4 1 1 1 Combat Bots Only 8 | . 4 2 1 2 5 5 3 . . . . . . . 1 . 2 . 1 8 . . . 2 . . 1 1 1 1 . . . . . Max Kills in Single Turn 4 | 1 1 1 1 4 3 2 1 . . . . . . . 1 . 1 1 1 4 . . . 1 1 . 1 1 1 1 1 1 1 1 1 Gunslinging . | . . . . . . . . . . . . . . . . . . . . . . . . . . . . . . . . . . . . Exploded 4 | . . . . 1 3 1 . . . . . . . . . . . . . 4 . . . . . . . 1 . . . . . . . Melee 1 | . . . . . . . . . . . . . . . 1 . 1 . 1 . . . . 1 . . 1 . 1 1 . . . . . Uniques/NPCs Destroyed . | . . . . . . . . . . . . . . . . . . . . . . . . . . . . . . . . . . . . Combat | -11 -10 -10 -9 -9 -9 -8 -7 -7 -7 -7 -7 -7 -7 -6 -6 -6 -6 -5 -5 -5 -5 -5 -5 -4 -4 -4 -4 -4 -3 -3 -3 -2 -2 -1 -1 -------- Run | Yrd Mat Min Mat Sto Gar Mat Fac Was Fac Low Low Zio Dee Pro Fac Was Fac Fac Was Fac Upp Upp Zhi Pro Fac Upp Upp War Pro Res Qua Res Tes Acc Com Hostile Shots Fired 726 | . 45 19 6 33 48 30 62 . 6 . 7 . 31 7 18 . 26 7 2 31 7 . . . . 6 3 15 12 2 3 13 3 60 224 Missed 281 | . 11 6 2 11 13 4 26 . 1 . 5 . 10 2 5 . 12 4 1 11 2 . . . . 6 2 4 6 1 2 7 3 29 95 Damage Taken 9788 | . 330 173 107 378 793 428 409 . 68 . 32 . 658 80 167 . 164 63 19 554 113 . . . . . 18 248 155 29 . 141 . 973 3688 Core 2748 | . 44 27 24 41 63 47 131 . 28 . . . 286 80 86 . 16 15 19 245 25 . . . . . 18 82 74 . . . . 89 1308 Absorbed by Shields 201 | . . . . . 53 128 . . . . . . . . . . . . . . . . . . . . . 20 . . . . . . . Regen/Repaired (Parts) 473 | . . . . . . . . . . . . . . . 41 . . . . 37 . . . . 46 . . 23 . . 61 36 32 125 72 Core Remaining (%) 78 | 100 . 71 . . 68 91 . . . . . . . 25 . . 88 . . . . . . 69 . . . . 84 . 93 . 100 . . Volleys Fired 216 | 4 45 8 6 29 58 33 18 . 2 . . . . . . . . . . 6 . . . . . . . 7 . . . . . . . Largest 2 | 2 2 2 2 2 1 2 1 . 1 . . . . . . . . . . 1 . . . . . . . 1 . . . . . . . Hottest 126 | 60 60 46 46 113 90 126 90 . 90 . . . . . . . . . . 43 . . . . . . . 40 . . . . . . . Shots Fired 303 | 8 90 17 12 48 58 37 18 . 2 . . . . . . . . . . 6 . . . . . . . 7 . . . . . . . Gun 167 | 8 90 17 12 36 . . . . . . . . . . . . . . . . . . . . . . . 4 . . . . . . . Cannon 104 | . . . . 9 45 30 18 . 2 . . . . . . . . . . . . . . . . . . . . . . . . . . Launcher 29 | . . . . 3 13 7 . . . . . . . . . . . . . 6 . . . . . . . . . . . . . . . Special 3 | . . . . . . . . . . . . . . . . . . . . . . . . . . . . 3 . . . . . . . Kinetic 147 | 4 78 17 12 36 . . . . . . . . . . . . . . . . . . . . . . . . . . . . . . . Thermal 107 | . . . . 9 45 30 18 . 2 . . . . . . . . . . . . . . . . . . 3 . . . . . . . Explosive 32 | . . . . 3 13 7 . . . . . . . . . . . . . 6 . . . . . . . 3 . . . . . . . Electromagnetic 16 | 4 12 . . . . . . . . . . . . . . . . . . . . . . . . . . . . . . . . . . Entropic 1 | . . . . . . . . . . . . . . . . . . . . . . . . . . . . 1 . . . . . . . Robot Hit Streak 35 | 4 6 7 16 35 7 7 1 . . . . . . . . . . . . 2 . . . . . . . . . . . . . . . Robot Miss Streak 7 | 1 7 1 . 3 2 4 4 . . . . . . . . . . . . 2 . . . . . . . . . . . . . . . Penetration Max . | . . . . . . . . . . . . . . . . . . . . . . . . . . . . . . . . . . . . Secondary Targets 3 | . 2 1 . . . . . . . . . . . . . . . . . . . . . . . . . . . . . . . . . Max Gunslinging Chain 1 | . 1 1 . . . . . . . . . . . . . . . . . . . . . . . . . . . . . . . . . Shots Hit Robots 253 | 7 48 12 10 33 28 22 2 . . . . . 1 . 5 . 6 6 1 4 . . 6 2 10 . 1 . 8 3 4 29 3 1 1 Core Hits 155 | 3 25 5 6 18 21 17 4 . . . . . 1 . 2 . 1 1 1 10 . . 3 1 4 . 1 10 3 2 1 12 2 . 1 Critical Kills . | . . . . . . . . . . . . . . . . . . . . . . . . . . . . . . . . . . . . Critical Parts Destroyed . | . . . . . . . . . . . . . . . . . . . . . . . . . . . . . . . . . . . . Critical Strikes 7 | . 1 . . . . . . . . . . . . . . . . 1 . . . . . . 3 . . . . . . 2 . . . Corrupt 1 | . 1 . . . . . . . . . . . . . . . . . . . . . . . . . . . . . . . . . . Sever 4 | . . . . . . . . . . . . . . . . . . 1 . . . . . . 3 . . . . . . . . . . Impale 2 | . . . . . . . . . . . . . . . . . . . . . . . . . . . . . . . . 2 . . . Melee Attacks 311 | . . . . . . . . . . 5 . 2 1 . 24 . 19 13 1 18 2 . 6 4 30 2 7 4 11 16 20 71 30 21 4 Impact . | . . . . . . . . . . . . . . . . . . . . . . . . . . . . . . . . . . . . Slashing 211 | . . . . . . . . . . . . . . . 24 . 19 13 1 18 2 . 6 4 30 2 7 4 . . . 26 30 21 4 Piercing 99 | . . . . . . . . . . 5 . 2 1 . . . . . . . . . . . . . . . 11 16 19 45 . . . Sneak Attacks 26 | . . . . . . . . . . . . . . . 3 . 2 1 . . . . . 1 1 . . . 1 2 2 12 1 . . Combat Hostiles 5 | . . . . . . . . . . . . . . . 1 . . . . . . . . 1 . . . . 1 1 . 1 . . . Follow-up Attacks . | . . . . . . . . . . . . . . . . . . . . . . . . . . . . . . . . . . . . Damage Inflicted 13777 | 87 764 219 152 780 1845 1429 110 . . . . . 56 . 373 . 352 309 52 928 . . 475 122 594 . 42 755 475 341 259 2673 365 103 117 Guns 1609 | 87 764 219 152 387 . . . . . . . . . . . . . . . . . . . . . . . . . . . . . . . Cannons 1506 | . . . . 137 623 636 110 . . . . . . . . . . . . . . . . . . . . . . . . . . . . Explosions 3881 | . . . . 256 1222 793 . . . . . . . . . . . . . 856 . . . . . . . 754 . . . . . . . Melee 6780 | . . . . . . . . . . . . . 56 . 373 . 352 309 52 72 . . 475 122 594 . 42 . 475 341 259 2673 365 103 117 Ramming 1 | . . . . . . . . . . . . . . . . . . . . . . . . . . . . 1 . . . . . . . Kinetic 1437 | 48 631 219 152 387 . . . . . . . . . . . . . . . . . . . . . . . . . . . . . . . Thermal 1914 | . . . . 137 623 636 110 . . . . . . . . . . . . 408 . . . . . . . . . . . . . . . Explosive 3473 | . . . . 256 1222 793 . . . . . . . . . . . . . 448 . . . . . . . 754 . . . . . . . Electromagnetic 172 | 39 133 . . . . . . . . . . . . . . . . . . . . . . . . . . . . . . . . . . Impact . | . . . . . . . . . . . . . . . . . . . . . . . . . . . . . . . . . . . . Slashing 3819 | . . . . . . . . . . . . . . . 373 . 352 309 52 72 . . 475 122 594 . 42 . . . . 843 365 103 117 Piercing 2961 | . . . . . . . . . . . . . 56 . . . . . . . . . . . . . . . 475 341 259 1830 . . . Highest Corruption 21 | . 5 5 . . . . . . . . . . . . . . . . . 1 1 1 1 1 . . . 1 1 . . . . 8 21 Average Corruption 3 | . 4 5 . . . . . . . . . . . . . . . . . 1 1 1 1 1 . . . 1 1 . . . . 8 10 Corruption Purged . | . . . . . . . . . . . . . . . . . . . . . . . . . . . . . . . . . . . . Corruption Blocked . | . . . . . . . . . . . . . . . . . . . . . . . . . . . . . . . . . . . . Effects 51 | . 26 9 . . . . . . . . . . . . . . . . . 1 1 . 1 . . . . . 3 . . . . 7 3 Message Errors 11 | . 4 3 . . . . . . . . . . . . . . . . . 1 . . 1 . . . . . . . . . . 1 1 Matter Fused 10 | . 5 1 . . . . . . . . . . . . . . . . . . . . . . . . . . 2 . . . . 1 1 Heat Flow Errors 10 | . 4 1 . . . . . . . . . . . . . . . . . . . . . . . . . . 1 . . . . 4 . Energy Discharges 3 | . 2 1 . . . . . . . . . . . . . . . . . . . . . . . . . . . . . . . . . Data Loss (minor) 9 | . 6 1 . . . . . . . . . . . . . . . . . . 1 . . . . . . . . . . . . 1 . Data Loss (major) 4 | . 3 1 . . . . . . . . . . . . . . . . . . . . . . . . . . . . . . . . . Misfires 2 | . 1 1 . . . . . . . . . . . . . . . . . . . . . . . . . . . . . . . . . Misdirections 1 | . . . . . . . . . . . . . . . . . . . . . . . . . . . . . . . . . . . 1 Weapon Failures 1 | . 1 . . . . . . . . . . . . . . . . . . . . . . . . . . . . . . . . . . Overload Shots . | . . . . . . . . . . . . . . . . . . . . . . . . . . . . . . . . . . . . Overflow Damage 1751 | . . . . 24 113 34 . . . . . . . . 94 . 156 . . 55 . . 235 40 78 . . . 81 38 27 617 111 48 . Projectiles . | . . . . . . . . . . . . . . . . . . . . . . . . . . . . . . . . . . . . Explosions 226 | . . . . 24 113 34 . . . . . . . . . . . . . 55 . . . . . . . . . . . . . . . Melee 1525 | . . . . . . . . . . . . . . . 94 . 156 . . . . . 235 40 78 . . . 81 38 27 617 111 48 . Knockbacks . | . . . . . . . . . . . . . . . . . . . . . . . . . . . . . . . . . . . . Impact . | . . . . . . . . . . . . . . . . . . . . . . . . . . . . . . . . . . . . Kinetic . | . . . . . . . . . . . . . . . . . . . . . . . . . . . . . . . . . . . . Secondary . | . . . . . . . . . . . . . . . . . . . . . . . . . . . . . . . . . . . . Self-Inflicted Damage 457 | . . . . 61 93 99 . . . . . . . . . . . . . 204 . . . . . . . . . . . . . . . Shots 10 | . . . . 2 3 2 . . . . . . . . . . . . . 3 . . . . . . . . . . . . . . . Rammed 1 | . . . . . . . . . . . . . . . . . . . . . . . . . . . . 1 . . . . . . . Targets Rammed 1 | . . . . . . . . . . . . . . . . . . . . . . . . . . . . 1 . . . . . . . Kicked . | . . . . . . . . . . . . . . . . . . . . . . . . . . . . . . . . . . . . Crushed . | . . . . . . . . . . . . . . . . . . . . . . . . . . . . . . . . . . . . Highest Temperature 387 | . 233 275 2 252 387 356 308 . 80 . . . 17 . . . . . 3 15 . . . . . 11 . 9 55 68 . 251 . 237 2 Average Temperature 84 | . 77 67 2 74 102 163 102 . 40 . . . 7 . . . . . 3 6 . . . . . 11 . 9 20 31 . 50 . 93 2 Received Heat Transfer 1126 | . 93 99 9 99 167 151 48 . . . . . 189 9 . . 24 9 9 72 18 . . . . . . 13 36 9 . 9 . . 63 Effects 10 | . . . . 1 4 4 1 . . . . . . . . . . . . . . . . . . . . . . . . . . . . Shutdowns 1 | . . . . . . 1 . . . . . . . . . . . . . . . . . . . . . . . . . . . . . Energy Bleed 7 | . . . . 1 4 2 . . . . . . . . . . . . . . . . . . . . . . . . . . . . . Interference 1 | . . . . . . . 1 . . . . . . . . . . . . . . . . . . . . . . . . . . . . Short Circuit 1 | . . . . . . 1 . . . . . . . . . . . . . . . . . . . . . . . . . . . . . Siege Activations . | . . . . . . . . . . . . . . . . . . . . . . . . . . . . . . . . . . . . Robots Corrupted . | . . . . . . . . . . . . . . . . . . . . . . . . . . . . . . . . . . . . Combat Hostiles . | . . . . . . . . . . . . . . . . . . . . . . . . . . . . . . . . . . . . Parts Fried . | . . . . . . . . . . . . . . . . . . . . . . . . . . . . . . . . . . . . Impact Corruptions . | . . . . . . . . . . . . . . . . . . . . . . . . . . . . . . . . . . . . Robots Melted . | . . . . . . . . . . . . . . . . . . . . . . . . . . . . . . . . . . . . Combat Hostiles . | . . . . . . . . . . . . . . . . . . . . . . . . . . . . . . . . . . . . Parts Melted 5 | . . . . . 2 2 1 . . . . . . . . . . . . . . . . . . . . . . . . . . . . Heat Transferred 2298 | . . . . 185 814 851 148 . . . . . . . . . . . . 300 . . . . . . . . . . . . . . . Parts Sabotaged 6 | . . . . . . . . . . . . . . . . . . . . . . . . . . . . . . . . . . . 6 Parts Stolen . | . . . . . . . . . . . . . . . . . . . . . . . . . . . . . . . . . . . . Parts Stripped . | . . . . . . . . . . . . . . . . . . . . . . . . . . . . . . . . . . . . Power Chain Reactions . | . . . . . . . . . . . . . . . . . . . . . . . . . . . . . . . . . . . . Alert | -11 -10 -10 -9 -9 -9 -8 -7 -7 -7 -7 -7 -7 -7 -6 -6 -6 -6 -5 -5 -5 -5 -5 -5 -4 -4 -4 -4 -4 -3 -3 -3 -2 -2 -1 -1 ------- Run | Yrd Mat Min Mat Sto Gar Mat Fac Was Fac Low Low Zio Dee Pro Fac Was Fac Fac Was Fac Upp Upp Zhi Pro Fac Upp Upp War Pro Res Qua Res Tes Acc Com Peak Influence 1672 | 10 292 120 103 422 1672 1168 467 182 142 . . . . . 393 146 263 247 115 744 . . . . 114 . . . . 354 267 585 561 248 396 Initial 815 | . 6 70 . 42 274 815 466 152 127 . . . . . 94 86 102 135 80 80 . . . . 6 . . . . 263 93 158 243 1 158 Average 377 | 3 185 70 36 198 1005 946 433 164 131 . . . . . 183 102 166 172 99 317 . . . . 39 . . . . 294 193 432 271 118 295 Maximum Alert Level 5 | . 1 . . 2 5 4 2 . . . . . . . 1 . 1 1 . 3 . . . . . . . . . 1 1 2 2 1 1 Low Security (%) 41 | 100 49 100 100 50 . . . 100 100 . . . . . 68 100 66 79 100 22 . . . . 100 . . . . 12 63 5 32 79 7 Level 1 25 | . 50 . . 47 7 . 2 . . . . . . . 31 . 33 20 . 56 . . . . . . . . . 87 36 16 23 20 92 Level 2 16 | . . . . 2 24 . 97 . . . . . . . . . . . . 19 . . . . . . . . . . . 78 44 . . Level 3 11 | . . . . . 31 97 . . . . . . . . . . . . . 1 . . . . . . . . . . . . . . . Level 4 3 | . . . . . 25 2 . . . . . . . . . . . . . . . . . . . . . . . . . . . . . Level 5 1 | . . . . . 12 . . . . . . . . . . . . . . . . . . . . . . . . . . . . . . High Security . | . . . . . . . . . . . . . . . . . . . . . . . . . . . . . . . . . . . . Max Security . | . . . . . . . . . . . . . . . . . . . . . . . . . . . . . . . . . . . . Squads Dispatched 42 | . 3 . . 3 . 2 1 . . . . . . . 5 . 5 1 . 5 . . . . 1 . . . . 2 2 5 3 3 1 Investigation 14 | . 2 . . . . . 1 . . . . . . . 3 . 2 . . 3 . . . . 1 . . . . . . 1 1 . . Extermination 4 | . . . . . . . . . . . . . . . . . 1 . . . . . . . . . . . . 1 1 . . 1 . Reinforcement 22 | . 1 . . 2 . 2 . . . . . . . . 2 . 2 1 . 1 . . . . . . . . . 1 1 4 2 2 1 Assault 1 | . . . . . . . . . . . . . . . . . . . . 1 . . . . . . . . . . . . . . . Garrison 1 | . . . . 1 . . . . . . . . . . . . . . . . . . . . . . . . . . . . . . . Intercept . | . . . . . . . . . . . . . . . . . . . . . . . . . . . . . . . . . . . . Searches Triggered 1 | . . . . . . . . . . . . . . . . . . . . . . . . . . . . . . . . . 1 . . Construction Impeded 1 | . . . . . . . . . . . . . . . 1 . . . . . . . . . . . . . . . . . . . . Haulers Reinforced 1 | . . . . . . . . . . . . . . . . . . 1 . . . . . . . . . . . . . . . . . Active Scanning Responses . | . . . . . . . . . . . . . . . . . . . . . . . . . . . . . . . . . . . . Cargo Convoy Interrupts . | . . . . . . . . . . . . . . . . . . . . . . . . . . . . . . . . . . . . Stealth | -11 -10 -10 -9 -9 -9 -8 -7 -7 -7 -7 -7 -7 -7 -6 -6 -6 -6 -5 -5 -5 -5 -5 -5 -4 -4 -4 -4 -4 -3 -3 -3 -2 -2 -1 -1 --------- Run | Yrd Mat Min Mat Sto Gar Mat Fac Was Fac Low Low Zio Dee Pro Fac Was Fac Fac Was Fac Upp Upp Zhi Pro Fac Upp Upp War Pro Res Qua Res Tes Acc Com Distress Signals 18 | . 1 . 1 2 . 3 . . . . . . . . 1 . . . . . . . . . . . . . . . . 5 3 2 . Communications Jammed 18 | . . . . . . . . . . . . . . . . . . . . . . . . . 4 . . . 3 2 . 2 3 4 . Distress Signals 15 | . . . . . . . . . . . . . . . . . . . . . . . . . 4 . . . . 2 . 2 3 4 . Times Spotted 496 | . 26 2 3 21 24 18 5 5 3 2 5 . 4 8 17 5 9 5 1 16 6 . . 1 6 3 1 37 10 4 5 36 5 42 161 Peak Tracking Total 174 | . 4 2 2 7 5 6 4 5 3 3 5 . 5 7 5 5 4 3 1 8 4 . . 1 3 3 1 11 3 3 3 5 2 16 174 Tactical Retreats 35 | . 3 . . 2 . . 1 . 1 1 1 . . 3 4 . 2 . . 3 3 . . . 1 1 . . . . . 3 . 4 2 Traps | -11 -10 -10 -9 -9 -9 -8 -7 -7 -7 -7 -7 -7 -7 -6 -6 -6 -6 -5 -5 -5 -5 -5 -5 -4 -4 -4 -4 -4 -3 -3 -3 -2 -2 -1 -1 ------- Run | Yrd Mat Min Mat Sto Gar Mat Fac Was Fac Low Low Zio Dee Pro Fac Was Fac Fac Was Fac Upp Upp Zhi Pro Fac Upp Upp War Pro Res Qua Res Tes Acc Com Traps Triggered 13 | . 3 . 1 2 2 . 1 . . . . . . . 1 . . 2 . . . . . . . . . . . . 1 . . . . Indirectly . | . . . . . . . . . . . . . . . . . . . . . . . . . . . . . . . . . . . . Trap Hack Attempts . | . . . . . . . . . . . . . . . . . . . . . . . . . . . . . . . . . . . . Triggered . | . . . . . . . . . . . . . . . . . . . . . . . . . . . . . . . . . . . . Disarmed . | . . . . . . . . . . . . . . . . . . . . . . . . . . . . . . . . . . . . Reprogrammed . | . . . . . . . . . . . . . . . . . . . . . . . . . . . . . . . . . . . . Reused . | . . . . . . . . . . . . . . . . . . . . . . . . . . . . . . . . . . . . Traps Extracted . | . . . . . . . . . . . . . . . . . . . . . . . . . . . . . . . . . . . . Installed . | . . . . . . . . . . . . . . . . . . . . . . . . . . . . . . . . . . . . Triggered 10 | . 1 . . . . . . . . . . . . . . . . . . . . . . . . 2 . 7 . . . . . . . Most Traps Carried 3 | . . 3 3 2 . . . . . . . . . . . . . . . . . . . . . . . . . . . . . . . Machines | -11 -10 -10 -9 -9 -9 -8 -7 -7 -7 -7 -7 -7 -7 -6 -6 -6 -6 -5 -5 -5 -5 -5 -5 -4 -4 -4 -4 -4 -3 -3 -3 -2 -2 -1 -1 ---------- Run | Yrd Mat Min Mat Sto Gar Mat Fac Was Fac Low Low Zio Dee Pro Fac Was Fac Fac Was Fac Upp Upp Zhi Pro Fac Upp Upp War Pro Res Qua Res Tes Acc Com Machines Disabled 35 | . . . . . 13 2 . . . . . . . . 1 . . . . 9 . . . . . . 1 1 . . 4 . 4 . . Max in Single Turn 5 | . . . . . 2 1 . . . . . . . . 1 . . . . 5 . . . . . . 1 1 . . 1 . 1 . . Garrison Access 13 | . . . . . . . 1 . . . . . . . 1 . . . . 2 . . . . 2 . . . . 2 1 3 1 . . Garrison Relay 4 | . . . . . 4 . . . . . . . . . . . . . . . . . . . . . . . . . . . . . . Phase Generator 1 | . . . . . 1 . . . . . . . . . . . . . . . . . . . . . . . . . . . . . . Machines Repaired . | . . . . . . . . . . . . . . . . . . . . . . . . . . . . . . . . . . . . Machines Dismantled . | . . . . . . . . . . . . . . . . . . . . . . . . . . . . . . . . . . . . Machines Sabotaged . | . . . . . . . . . . . . . . . . . . . . . . . . . . . . . . . . . . . . Overloaded Fab Kills . | . . . . . . . . . . . . . . . . . . . . . . . . . . . . . . . . . . . . Hacking | -11 -10 -10 -9 -9 -9 -8 -7 -7 -7 -7 -7 -7 -7 -6 -6 -6 -6 -5 -5 -5 -5 -5 -5 -4 -4 -4 -4 -4 -3 -3 -3 -2 -2 -1 -1 --------- Run | Yrd Mat Min Mat Sto Gar Mat Fac Was Fac Low Low Zio Dee Pro Fac Was Fac Fac Was Fac Upp Upp Zhi Pro Fac Upp Upp War Pro Res Qua Res Tes Acc Com Machines Accessed 143 | . 8 1 . 5 3 5 5 . . . 1 1 . 1 15 . 7 5 . 15 3 1 4 . 11 . 1 2 . 7 17 5 12 7 1 Terminals 83 | . 6 . . 3 3 4 . . . . . . . 1 8 . 5 3 . 8 1 . . . 6 . . . . 5 13 3 7 6 1 Fabricators 10 | . . . . . . . 1 . . . . . . . 3 . 2 . . 2 . . . . 1 . . . . . . . 1 . . Repair Stations 8 | . . . . . . 1 1 . . . . . . . 1 . . . . 1 . . . . 1 . . . . . 2 . 1 . . Recycling Units 10 | . 2 . . 1 . . 2 . . . . . . . 1 . . 2 . 1 . . . . 1 . . . . . . . . . . Scanalyzers 7 | . . . . . . . . . . . . . . . 1 . . . . 1 . . . . . . . . . . 1 1 2 1 . Garrison Access 12 | . . . . 1 . . 1 . . . . . . . 1 . . . . 2 . . . . 2 . . . . 2 1 1 1 . . Total Hacks 510 | . 24 1 . 11 5 14 13 . . . 1 3 . 1 51 . 26 20 . 58 14 1 17 . 53 . 1 5 . 27 64 25 57 15 3 Successful 363 | . 17 1 . 9 2 5 9 . . . 1 3 . 1 34 . 15 12 . 40 14 1 17 . 35 . 1 5 . 18 53 14 45 9 2 Failed 145 | . 7 . . 2 3 9 4 . . . . . . . 17 . 11 8 . 18 . . . . 18 . . . . 9 10 11 11 6 1 Catastrophic 10 | . . . . . 2 . . . . . . . . . 1 . 1 1 . . . . . . 2 . . . . . 1 1 . 1 . Database Lockouts 2 | . . . . . . . . . . . . . . . . . . . . . . . . . . . . . . . 1 . 1 . . Manual 275 | . 21 . . 6 . 12 4 . . . . 4 . . 28 . 19 14 . 32 . . . . 30 . . 1 . 19 37 14 25 6 3 Terminals 347 | . 19 . . 7 5 12 . . . . . . . 1 35 . 21 16 . 30 7 . . . 36 . . . . 22 52 22 45 14 3 Fabricators 37 | . . . . . . . 4 . . . . . . . 8 . 5 . . 11 . . . . 6 . . . . . . . 3 . . Repair Stations 15 | . . . . . . 2 2 . . . . . . . 2 . . . . 3 . . . . 2 . . . . . 3 . 1 . . Recycling Units 25 | . 5 . . 3 . . 5 . . . . . . . 1 . . 4 . 3 . . . . 4 . . . . . . . . . . Scanalyzers 27 | . . . . . . . . . . . . . . . 3 . . . . 8 . . . . . . . . . . 7 1 7 1 . Garrison Access 23 | . . . . 1 . . 2 . . . . . . . 2 . . . . 3 . . . . 5 . . . . 5 2 2 1 . . Terminal Hacks 160 | . 3 1 . 2 2 . . . . . 1 3 . 1 11 . 2 4 . 7 14 1 17 . 12 . 1 5 . 8 26 12 22 5 . Record 25 | . . . . . . . . . . . . . . 1 . . . . . . 13 . 5 . . . . . . . 4 2 . . . Part Schematic 29 | . 1 . . . . . . . . . . 3 . . 5 . . . . . . . 4 . 4 . . . . 3 1 3 5 . . Robot Schematic 1 | . . . . . . . . . . . . . . . . . . . . . . . . . . . . . . . . . 1 . . Robot Analysis 4 | . . . . . . . . . . . . . . . . . . . . . . . 4 . . . . . . . . . . . . Prototype ID Bank 23 | . . . . 1 . . . . . . . . . . . . . . . . . . 4 . 1 . . 4 . . 10 . 3 . . Open Door 13 | . . 1 . 1 1 . . . . . 1 . . . . . . . . . 1 1 . . . . 1 1 . 1 1 . . 3 . Level Access Points 4 | . . . . . . . . . . . . . . . . . . . . . . . . . . . . . . 1 1 1 1 . . Branch Access Points 4 | . . . . . . . . . . . . . . . . . . . . . . . . . 1 . . . . 1 1 1 . . . Machine Index 1 | . . . . . . . . . . . . . . . . . . . . 1 . . . . . . . . . . . . . . . Terminal Index 10 | . 1 . . . . . . . . . . . . . 1 . 1 1 . 1 . . . . 1 . . . . . 1 1 1 1 . Fabricator Index 4 | . . . . . . . . . . . . . . . 1 . . 1 . 1 . . . . . . . . . . 1 . . . . Garrison Index 2 | . . . . . . . . . . . . . . . . . . . . . . . . . 1 . . . . . . 1 . . . Alert Level 5 | . . . . . . . . . . . . . . . 1 . 1 1 . . . . . . 1 . . . . . . . 1 . . Unreport Threat 7 | . . . . . . . . . . . . . . . . . . . . 3 . . . . 1 . . . . . . . 3 . . Locate Traps 10 | . 1 . . . . . . . . . . . . . 2 . . 1 . 1 . . . . 1 . . . . 2 2 . . . . Maintenance Status 1 | . . . . . . . . . . . . . . . . . . . . . . . . . . . . . . . . 1 . . . Security Status 1 | . . . . . . . . . . . . . . . . . . . . . . . . . . . . . . . . . 1 . . Patrol Status 2 | . . . . . . . . . . . . . . . . . . . . . . . . . . . . . . . 1 . 1 . . Investigation Status 1 | . . . . . . . . . . . . . . . . . . . . . . . . . . . . . . . . . 1 . . Assault Status 1 | . . . . . . . . . . . . . . . . . . . . . . . . . . . . . . . . 1 . . . Recall Investigation 2 | . . . . . . . . . . . . . . . . . . . . . . . . . 1 . . . . . . . 1 . . Recall Extermination 1 | . . . . . . . . . . . . . . . . . . . . . . . . . . . . . . . . . . 1 . Recall Reinforcements 2 | . . . . . . . . . . . . . . . 1 . . . . . . . . . . . . . . . . . 1 . . Hauler Manifests 2 | . . . . . . . . . . . . . . . . . . . . . . . . . . . . . . . 1 . 1 . . Registered Components 1 | . . . . . . . . . . . . . . . . . . . . . . . . . . . . . . . 1 . . . . Zone Layout 2 | . . . . . . . . . . . . . . . . . . . . . . . . . . . . . . . 1 1 . . . Patrol Navigation 1 | . . . . . 1 . . . . . . . . . . . . . . . . . . . . . . . . . . . . . . Protovariant Controls 1 | . . . . . . . . . . . . . . . . . . . . . . . . . . . . . . . . . 1 . . Fabricator Hacks 23 | . . . . . . . 2 . . . . . . . 6 . 3 . . 5 . . . . 4 . . . . . . . 3 . . Network Status 4 | . . . . . . . 1 . . . . . . . . . . . . 1 . . . . 1 . . . . . . . 1 . . Load Schematic 10 | . . . . . . . 1 . . . . . . . 3 . 2 . . 2 . . . . 1 . . . . . . . 1 . . Build 9 | . . . . . . . . . . . . . . . 3 . 1 . . 2 . . . . 2 . . . . . . . 1 . . Repair Station Hacks 11 | . . . . . . 1 . . . . . . . . 2 . . . . 2 . . . . 2 . . . . . 3 . 1 . . Scan Component 7 | . . . . . . 1 . . . . . . . . 1 . . . . 1 . . . . 1 . . . . . 2 . 1 . . Repair 4 | . . . . . . . . . . . . . . . 1 . . . . 1 . . . . 1 . . . . . 1 . . . . Recycling Unit Hacks 9 | . 2 . . 1 . . 2 . . . . . . . 1 . . 1 . 1 . . . . 1 . . . . . . . . . . Retrieve Components 9 | . 2 . . 1 . . 2 . . . . . . . 1 . . 1 . 1 . . . . 1 . . . . . . . . . . Scanalyzer 22 | . . . . . . . . . . . . . . . 3 . . . . 4 . . . . . . . . . . 7 1 6 1 . Insert Component 11 | . . . . . . . . . . . . . . . 1 . . . . 1 . . . . . . . . . . 4 1 3 1 . Analyze 11 | . . . . . . . . . . . . . . . 2 . . . . 3 . . . . . . . . . . 3 . 3 . . Garrison Access Hacks 12 | . . . . 1 . . 1 . . . . . . . 1 . . . . 2 . . . . 2 . . . . 2 1 1 1 . . Unlock Access 1 | . . . . 1 . . . . . . . . . . . . . . . . . . . . . . . . . . . . . . . Seal Access 11 | . . . . . . . 1 . . . . . . . 1 . . . . 2 . . . . 2 . . . . 2 1 1 1 . . Unauthorized Hacks 126 | . 12 . . 5 . 4 4 . . . . . . . 10 . 10 7 . 19 . . . . 14 . . . . 8 16 . 12 3 2 Terminals 101 | . 9 . . 4 . 4 . . . . . . . . 9 . 8 7 . 12 . . . . 9 . . . . 6 16 . 12 3 2 Track 8 | . . . . . . . . . . . . . . . . . . 1 . . . . . . . . . . . . 5 . 2 . . Assimilate 8 | . . . . . . . . . . . . . . . . . . 1 . 2 . . . . . . . . . . 3 . 1 . 1 Botnet 25 | . 2 . . 2 . . . . . . . . . . 3 . 2 2 . 3 . . . . 3 . . . . 2 2 . 3 . 1 Operators 8 | . 1 . . . . . . . . . . . . . 1 . 1 1 . 1 . . . . 1 . . . . . 1 . 1 . . Skim 52 | . 6 . . 2 . 4 . . . . . . . . 5 . 5 2 . 6 . . . . 5 . . . . 4 5 . 5 3 . Fabricators 10 | . . . . . . . 2 . . . . . . . 1 . 2 . . 4 . . . . 1 . . . . . . . . . . Prioritize 4 | . . . . . . . . . . . . . . . 1 . 1 . . 2 . . . . . . . . . . . . . . . Fabnet 3 | . . . . . . . 1 . . . . . . . . . . . . 1 . . . . 1 . . . . . . . . . . Haulers 1 | . . . . . . . . . . . . . . . . . . . . 1 . . . . . . . . . . . . . . . Recompile 2 | . . . . . . . 1 . . . . . . . . . 1 . . . . . . . . . . . . . . . . . . Repair Stations . | . . . . . . . . . . . . . . . . . . . . . . . . . . . . . . . . . . . . Recycling Units 8 | . 3 . . 1 . . 1 . . . . . . . . . . . . 2 . . . . 1 . . . . . . . . . . Monitor 1 | . . . . . . . . . . . . . . . . . . . . 1 . . . . . . . . . . . . . . . Reject 2 | . 2 . . . . . . . . . . . . . . . . . . . . . . . . . . . . . . . . . . Recyclers 5 | . 1 . . 1 . . 1 . . . . . . . . . . . . 1 . . . . 1 . . . . . . . . . . Scanalyzers . | . . . . . . . . . . . . . . . . . . . . . . . . . . . . . . . . . . . . Garrison Access 7 | . . . . . . . 1 . . . . . . . . . . . . 1 . . . . 3 . . . . 2 . . . . . Broadcast 2 | . . . . . . . . . . . . . . . . . . . . . . . . . 1 . . . . 1 . . . . . Watchers 5 | . . . . . . . 1 . . . . . . . . . . . . 1 . . . . 2 . . . . 1 . . . . . Data Cores Recovered 3 | . . . . . . . . . . . . . . . . . . . . . . . . . 1 . . . . . . . 1 . 1 Used . | . . . . . . . . . . . . . . . . . . . . . . . . . . . . . . . . . . . . Hacking Detections 98 | . 6 . . 3 3 5 3 . . . . . . . 11 . 7 4 . 12 1 . . . 8 . . . . 4 12 3 10 5 1 Full Trace Events 12 | . 1 . . . 2 . . . . . . . . . 2 . 1 . . 3 . . . . 1 . . . . . . 1 1 . . Feedback Events . | . . . . . . . . . . . . . . . . . . . . . . . . . . . . . . . . . . . . Feedback Blocked 1 | . . . . . . . . . . . . . . . . . . . . 1 . . . . . . . . . . . . . . . Robot Schematics Acquired 6 | . . . . . . . . . . . . 4 . . . . . . . . . . . . . . . . . . . . 2 . . Robots Built . | . . . . . . . . . . . . . . . . . . . . . . . . . . . . . . . . . . . . Authchips . | . . . . . . . . . . . . . . . . . . . . . . . . . . . . . . . . . . . . Time 222 | . . . . . . . . . . . . . . . 222 . . . . . . . . . . . . . . . . . . . . Total Robot Build Rating . | . . . . . . . . . . . . . . . . . . . . . . . . . . . . . . . . . . . . Part Schematics Acquired 51 | . 1 . . . . . . . . . . 18 . . 6 . . . . 1 . . 4 . 4 . . . . 2 3 3 9 . . Parts Built 11 | . . . . . . . . . . . . . . . 3 . 1 . . 2 . . . . 4 . . . . . . . 1 . . Authchips 2 | . . . . . . . . . . . . . . . 1 . . . . 1 . . . . . . . . . . . . . . . Time 383 | . . . . . . . . . . . . . . . 91 . 33 . . 59 . . . . 138 . . . . . . . 62 . . Total Part Build Rating 71 | . . . . . . . . . . . . . . . 14 . 4 . . 10 . . . . 36 . . . . . . . 7 . . Parts Repaired 4 | . . . . . . . . . . . . . . . 1 . . . . 1 . . . . 1 . . . . . 1 . . . . Time 144 | . . . . . . . . . . . . . . . 25 . . . . 47 . . . . 35 . . . . . 37 . . . . Parts Recycled . | . . . . . . . . . . . . . . . . . . . . . . . . . . . . . . . . . . . . Recycled Matter . | . . . . . . . . . . . . . . . . . . . . . . . . . . . . . . . . . . . . Retrieved Matter . | . . . . . . . . . . . . . . . . . . . . . . . . . . . . . . . . . . . . Retrieved Components 30 | . 19 . . . . . 4 . . . . . . . 2 . . 2 . . . . . . 3 . . . . . . . . . . Parts Scanalyzed 8 | . . . . . . . . . . . . . . . 1 . . . . 1 . . . . . . . . . . 3 . 3 . . Part Schematics Acquired 6 | . . . . . . . . . . . . . . . 1 . . . . 1 . . . . . . . . . . 2 . 2 . . Parts Damaged . | . . . . . . . . . . . . . . . . . . . . . . . . . . . . . . . . . . . . Bothacking | -11 -10 -10 -9 -9 -9 -8 -7 -7 -7 -7 -7 -7 -7 -6 -6 -6 -6 -5 -5 -5 -5 -5 -5 -4 -4 -4 -4 -4 -3 -3 -3 -2 -2 -1 -1 ------------ Run | Yrd Mat Min Mat Sto Gar Mat Fac Was Fac Low Low Zio Dee Pro Fac Was Fac Fac Was Fac Upp Upp Zhi Pro Fac Upp Upp War Pro Res Qua Res Tes Acc Com Used RIF Installer . | . . . . . . . . . . . . . . . . . . . . . . . . . . . . . . . . . . . . Robots Hacked 1 | . . . . . . . . . . . . . . . . . . . . . . . . . . . . . . . 1 . . . . Non-combat 1 | . . . . . . . . . . . . . . . . . . . . . . . . . . . . . . . 1 . . . . Combat . | . . . . . . . . . . . . . . . . . . . . . . . . . . . . . . . . . . . . Robot Hacks Applied 1 | . . . . . . . . . . . . . . . . . . . . . . . . . . . . . . . 1 . . . . no_distress 1 | . . . . . . . . . . . . . . . . . . . . . . . . . . . . . . . 1 . . . . Relay Couplers Released 20 | . . . . . 18 . . . . . . . . . . . . . . . . . . . . . . . . . . 2 . . . Machine Destruction 20 | . . . . . 18 . . . . . . . . . . . . . . . . . . . . . . . . . . 2 . . . Fabnet Peak Effective % 3 | . . . . . . . . . . . . . . . . . . . . . . . . . . . . . 3 3 3 1 1 . . Robots Rewired 7 | . . . . . 2 . . . . . . . . . . . . . . . . . . . . . . 5 . . . . . . . Allies Hacked 2 | . . . . . . . . . . . . . . . . . . . . . . . . . . . . . . 1 . . . . 1 Hacks Repelled . | . . . . . . . . . . . . . . . . . . . . . . . . . . . . . . . . . . . . Allies | -11 -10 -10 -9 -9 -9 -8 -7 -7 -7 -7 -7 -7 -7 -6 -6 -6 -6 -5 -5 -5 -5 -5 -5 -4 -4 -4 -4 -4 -3 -3 -3 -2 -2 -1 -1 -------- Run | Yrd Mat Min Mat Sto Gar Mat Fac Was Fac Low Low Zio Dee Pro Fac Was Fac Fac Was Fac Upp Upp Zhi Pro Fac Upp Upp War Pro Res Qua Res Tes Acc Com Total Allies 20 | . . . . 10 2 . . . . . . . . . . . . 1 . . . . . . . . . 5 . . . . 1 . 1 Largest Group 10 | . . . . 10 10 3 . . . . . . . . . . . 1 . . . . . . . . . 5 2 1 . . 1 . 1 Highest-Rated Group 275 | . . . . 88 93 78 . . . . . . . . . . . 10 . . . . . . . . . 275 98 44 . . 45 . 45 Highest-Rated Ally 65 | . . . . 16 39 39 . . . . . . . . . . . 10 . . . . . . . . . 65 49 44 . . 45 . 45 Warlord Squad Rendezvous 6 | . . . . . . . . . . . . . . . 4 . 2 . . . . . . . . . . . . . . . . . . Dakka 2 | . . . . . . . . . . . . . . . 1 . 1 . . . . . . . . . . . . . . . . . . Infantry 1 | . . . . . . . . . . . . . . . 1 . . . . . . . . . . . . . . . . . . . . Muscle 1 | . . . . . . . . . . . . . . . . . 1 . . . . . . . . . . . . . . . . . . Geek 1 | . . . . . . . . . . . . . . . 1 . . . . . . . . . . . . . . . . . . . . Ghost 1 | . . . . . . . . . . . . . . . 1 . . . . . . . . . . . . . . . . . . . . Total Orders 38 | . . . . . 2 . 16 . . . . . . . . . . . . . . . . . . . . 12 4 4 . . . . . STAY 15 | . . . . . 1 . . . . . . . . . . . . . . . . . . . . . . 10 2 2 . . . . . ROAM 16 | . . . . . . . 16 . . . . . . . . . . . . . . . . . . . . . . . . . . . . FOLLOW 7 | . . . . . 1 . . . . . . . . . . . . . . . . . . . . . . 2 2 2 . . . . . Ally Attacks 200 | . . . . 17 99 21 . . . . . . . . . . . . . . . . . . . . . 39 24 . . . . . . Total Damage 4050 | . . . . 166 1105 299 . . . . . . . . . . . . . . . . . . . . . 1840 640 . . . . . . Kills 31 | . . . . 2 10 3 . . . . . . . . . . . . . . . . . . . . . 8 8 . . . . . . Allies Corrupted 1 | . . . . . . . . . . . . . . . . . . . . . . . . . . . . . . 1 . . . . . Allies Melted . | . . . . . . . . . . . . . . . . . . . . . . . . . . . . . . . . . . . . Intel | -11 -10 -10 -9 -9 -9 -8 -7 -7 -7 -7 -7 -7 -7 -6 -6 -6 -6 -5 -5 -5 -5 -5 -5 -4 -4 -4 -4 -4 -3 -3 -3 -2 -2 -1 -1 ------- Run | Yrd Mat Min Mat Sto Gar Mat Fac Was Fac Low Low Zio Dee Pro Fac Was Fac Fac Was Fac Upp Upp Zhi Pro Fac Upp Upp War Pro Res Qua Res Tes Acc Com Robot Analysis Total 4 | . . . . . . . . . . . . . . . . . . . . . . . 4 . . . . . . . . . . . . Derelict Logs Recovered 9 | . . 1 . . . . . . . 2 . 2 . . . . . . . . . 1 . 1 . 1 1 . . . . . . . . Drone Launches 16 | . . . . . . . 16 . . . . . . . . . . . . . . . . . . . . . . . . . . . . Drone Recoveries . | . . . . . . . . . . . . . . . . . . . . . . . . . . . . . . . . . . . . Exploration | -11 -10 -10 -9 -9 -9 -8 -7 -7 -7 -7 -7 -7 -7 -6 -6 -6 -6 -5 -5 -5 -5 -5 -5 -4 -4 -4 -4 -4 -3 -3 -3 -2 -2 -1 -1 ------------- Run | Yrd Mat Min Mat Sto Gar Mat Fac Was Fac Low Low Zio Dee Pro Fac Was Fac Fac Was Fac Upp Upp Zhi Pro Fac Upp Upp War Pro Res Qua Res Tes Acc Com Turns Passed 12629 | 83 1236 669 203 527 1392 665 209 40 32 149 59 433 113 85 548 50 281 149 125 381 95 64 69 67 423 88 249 692 686 458 333 1030 457 393 96 Spaces Moved 19453 | 42 485 264 101 208 750 352 326 99 78 389 142 955 203 163 778 124 492 328 252 829 322 226 156 178 1048 297 636 935 620 595 769 3845 1041 1180 245 Core 5 | 5 . . . . . . . . . . . . . . . . . . . . . . . . . . . . . . . . . . . Treads 2197 | 37 485 264 101 208 750 352 . . . . . . . . . . . . . . . . . . . . . . . . . . . . . Legs . | . . . . . . . . . . . . . . . . . . . . . . . . . . . . . . . . . . . . Wheels . | . . . . . . . . . . . . . . . . . . . . . . . . . . . . . . . . . . . . Hover . | . . . . . . . . . . . . . . . . . . . . . . . . . . . . . . . . . . . . Flight 17251 | . . . . . . . 326 99 78 389 142 955 203 163 778 124 492 328 252 829 322 226 156 178 1048 297 636 935 620 595 769 3845 1041 1180 245 Fastest Speed 15 | 50 160 240 160 160 160 152 26 34 34 34 34 40 52 52 38 38 27 27 27 27 28 28 28 21 25 15 15 19 19 18 19 16 21 19 25 Average Speed 42 | 146 183 240 160 160 160 156 33 34 34 34 39 43 52 52 40 38 35 27 27 27 28 28 28 27 25 24 24 25 20 18 19 18 22 21 25 Slowest Speed 240 | 160 240 240 160 160 240 160 106 34 34 34 40 52 52 52 52 38 44 27 27 30 28 28 28 28 28 25 25 92 21 19 19 23 23 25 29 Overloaded Moves 25 | . . . . . . . . . . . . . . . . . . . . . . . . 5 . 15 5 . . . . . . . . Propulsion Burnouts . | . . . . . . . . . . . . . . . . . . . . . . . . . . . . . . . . . . . . Robots Hopped 100 | . . . . . . . . . . . . . . 1 1 4 4 4 . 2 . . . . 5 1 . 1 . 5 10 23 6 18 15 Cave-ins Triggered 1 | . . . . . . . . . . . . . . . . . . . . . . . . . . . . . . . . . . 1 . Teleports 2 | . . . . . . . . . . . . . . . . . . . . . . . . . . . . . . . 1 . . 1 . Exploration Rate (%) 50 | 4 86 61 12 42 86 35 16 74 3 66 36 87 48 45 35 81 17 12 95 32 56 64 61 47 23 59 74 93 48 21 71 92 79 28 16 Regions Visited 35 Branch Regions 18 Pre-discovered Areas 16 | . . 1 . . . . . . . 1 . 1 . . . . . . . 5 1 . 3 . . 1 . . . . 2 . 1 . . Known Exits Taken 17 | . 1 1 . 1 . . . . . 1 . . . . . . 1 . . 1 . . . 1 1 1 1 1 1 1 1 1 1 1 . Unknown Exits Taken 11 | 1 . . 1 . . 1 . . 1 . 1 1 1 1 . . . . . . 1 1 1 . . . . . . . . . . . . Scrap Searched 20 | . . 1 . . . . . . . 4 . 4 . . . . . . . . 2 1 . . . 2 4 . 2 . . . . . . Spaces Dug 173 | . . . . . . 1 2 . . 5 . 1 . . 15 . 11 6 . 12 2 . . 2 13 2 4 . . 10 10 33 22 19 3 Terrain Destroyed 526 | . . . . 28 178 53 4 . . 5 . 1 . . 15 . 11 6 . 74 2 . . 2 13 2 4 31 . 10 10 33 22 19 3 Melee 170 | . . . . . . . . . . 5 . 1 . . 15 . 11 6 . 12 2 . . 2 13 2 4 . . 10 10 33 22 19 3 Projectile 15 | . . . . 4 . 7 4 . . . . . . . . . . . . . . . . . . . . . . . . . . . . AOE 341 | . . . . 24 178 46 . . . . . . . . . . . . . 62 . . . . . . . 31 . . . . . . . Terrain Rammed . | . . . . . . . . . . . . . . . . . . . . . . . . . . . . . . . . . . . . Walls Destroyed . | . . . . . . . . . . . . . . . . . . . . . . . . . . . . . . . . . . . . Machines Disabled . | . . . . . . . . . . . . . . . . . . . . . . . . . . . . . . . . . . . . Actions | -11 -10 -10 -9 -9 -9 -8 -7 -7 -7 -7 -7 -7 -7 -6 -6 -6 -6 -5 -5 -5 -5 -5 -5 -4 -4 -4 -4 -4 -3 -3 -3 -2 -2 -1 -1 --------- Run | Yrd Mat Min Mat Sto Gar Mat Fac Was Fac Low Low Zio Dee Pro Fac Was Fac Fac Was Fac Upp Upp Zhi Pro Fac Upp Upp War Pro Res Qua Res Tes Acc Com Total 22832 | 52 744 284 136 355 887 431 412 105 81 399 143 964 209 161 973 122 562 363 306 944 323 225 170 188 1156 307 715 1382 1163 914 922 4031 1193 1253 257 Wait 2351 | . 183 8 . 93 29 12 32 5 . 3 . 3 . . 152 3 38 20 46 77 . . . 7 58 10 66 348 513 285 81 114 96 57 12 Move 19247 | 41 484 263 100 208 749 351 326 98 77 388 141 954 202 160 776 117 483 320 251 824 321 225 155 177 1037 294 635 932 619 585 750 3803 1029 1150 222 Hop 75 | . . . . . . . . . . . . . . 1 1 2 4 4 . 2 . . . . 5 1 . 1 . 4 8 18 5 11 8 Pick Up 132 | . 18 5 11 5 3 12 3 1 . 1 . . 2 . 3 . 5 2 2 2 . . 1 . 3 . 3 16 4 5 12 4 5 2 2 Fast Attach 103 | 7 1 . . 2 3 1 5 . . 1 . 3 . . 6 . 3 3 2 6 . . 4 . 9 . 1 11 2 4 8 8 9 4 . Attach 60 | . . . 2 . 1 3 11 . 1 1 . . 2 . 6 . 1 1 2 4 . . 1 . 2 . 1 3 3 3 2 2 1 3 4 Detach 19 | . . . . . 1 . 2 . 1 . . . . . 1 . . . . 1 . . . . 1 . 1 4 1 . 3 1 2 . . Swap 58 | . 5 . 4 7 6 6 . . . . 1 1 . . 2 . 4 . . 1 . . 1 . . . . 2 5 4 2 1 3 1 2 Drop 186 | . 8 . 13 9 13 13 15 1 . . 1 1 2 . 2 . 5 . 2 3 . . 2 . 11 . 1 24 5 8 18 9 13 4 3 Fire 216 | 4 45 8 6 29 58 33 18 . 2 . . . . . . . . . . 6 . . . . . . . 7 . . . . . . . Melee 311 | . . . . . . . . . . 5 . 2 1 . 24 . 19 13 1 18 2 . 6 4 30 2 7 4 11 16 20 71 30 21 4 Ram 1 | . . . . . . . . . . . . . . . . . . . . . . . . . . . . 1 . . . . . . . Kick . | . . . . . . . . . . . . . . . . . . . . . . . . . . . . . . . . . . . . Crush . | . . . . . . . . . . . . . . . . . . . . . . . . . . . . . . . . . . . . Escape Stasis 18 | . . . . . . . . . . . . . . . . . . . . . . . . . . . . . . . 18 . . . . Rewire 55 | . . . . 2 24 . . . . . . . . . . . . . . . . . . . . . . 29 . . . . . . . Trap . | . . . . . . . . . . . . . . . . . . . . . . . . . . . . . . . . . . . . Miscellaneous . | . . . . . . . . . . . . . . . . . . . . . . . . . . . . . . . . . . . . Route ------- -11/Scrapyard -10/Materials (discovered 6 exits: *Mat x3 / *Min x2 / Sub) -10/Mines -9/Materials (discovered 3 exits: Mat x2 / *Sto) -9/Storage (discovered 2 exits: *Mat / Gar) -9/Garrison (discovered 3 exits: *Mat x3) -8/Materials -7/Factory -7/Waste -7/Factory -7/Lower Caves -7/Lower Caves -7/Zion (discovered 2 exits: [*Dee] / [*Pro]) -7/Deep Caves -6/Proximity Caves -6/Factory (discovered 3 exits: Fac x2 / *Low) -6/Waste -6/Factory (discovered 6 exits: *Fac x3 / Low / *Ext x2) -5/Factory -5/Waste -5/Factory (discovered 3 exits: Fac x2 / *Upp) -5/Upper Caves -5/Upper Caves -5/Zhirov -4/Proximity Caves -4/Factory (discovered 6 exits: *Res x3 / *Upp x2 / Arm) -4/Upper Caves -4/Upper Caves (discovered 2 exits: *Res / *War) -4/Warlord -3/Proximity Caves -3/Research (discovered 5 exits: Res x3 / *Qua x2) -3/Quarantine -2/Research (discovered 5 exits: *Acc x3 / *Tes x2) -2/Testing -1/Access -1/Command History --------- Turn | Location | Event 9 | -11/Scrapyard | Discovered new exit (range 14) 84 | -11/Scrapyard | Entered Materials 219 | -10/Materials | Discovered new exit (range 15) 309 | -10/Materials | Build established: Mutant 635 | -10/Materials | Discovered new exit (range 10) 837 | -10/Materials | Discovered new exit (range 6) 1178 | -10/Materials | Discovered new exit (range 14) 1220 | -10/Materials | Identified exit to Materials 1220 | -10/Materials | Identified exit to Mines 1220 | -10/Materials | Identified exit to Subcaves 1252 | -10/Materials | Learned 4 Subcaves zone layouts 1276 | -10/Materials | Learned location of 2 exits from Materials 1292 | -10/Materials | Learned 4 Recycling zone layouts 1294 | -10/Materials | Learned 2 Materials zone layouts 1305 | -10/Materials | Learned location of 1 exit from Recycling 1320 | -10/Materials | Entered Mines 1340 | -10/Mines | Met a Derelict bent on vengeance 1379 | -10/Mines | Learned location of Zion (-7) 1631 | -10/Mines | Found a hidden stash of uninstalled traps 1857 | -10/Mines | Found the Drone Emporium 1872 | -10/Mines | Found Prototype Device 1965 | -10/Mines | Discovered exit to Materials (range 11) 1989 | -10/Mines | Entered Materials 1989 | -9/Materials | Evolved 2 slots: Propulsion x2 1990 | -9/Materials | Identified exit to Materials 2114 | -9/Materials | Discovered new exit (range 8) 2192 | -9/Materials | Entered Storage 2299 | -9/Storage | Build established: Scavenger-Mutant 2634 | -9/Storage | Assisted by bots powering up and referring to "LRC-V3" 2686 | -9/Storage | Discovered exit to Materials (range 5) 2704 | -9/Storage | Garrison activated, responded to threat 2713 | -9/Storage | Identified exit to Garrison 2719 | -9/Storage | Entered Garrison 2719 | -9/Garrison | Accompanied by 10 allies 2783 | -9/Garrison | Triggered checkpoint 2820 | -9/Garrison | Garrison Relay disabled 2906 | -9/Garrison | Build established: Commander-Mutant 2940 | -9/Garrison | Spotted B-75 Beast 2968 | -9/Garrison | Destroyed B-75 Beast 3101 | -9/Garrison | Triggered checkpoint 3151 | -9/Garrison | Triggered checkpoint 3171 | -9/Garrison | Garrison Relay disabled 3185 | -9/Garrison | Triggered checkpoint 3185 | -9/Garrison | Triggered checkpoint 3261 | -9/Garrison | Discovered exit to Materials (range 9) 3334 | -9/Garrison | Phase Generator disabled 3392 | -9/Garrison | Build established: Scavenger-Mutant 3610 | -9/Garrison | Triggered checkpoint 3697 | -9/Garrison | Garrison Relay disabled 3727 | -9/Garrison | Triggered checkpoint 3758 | -9/Garrison | Discovered exit to Materials (range 13) 3939 | -9/Garrison | Garrison Relay disabled 3951 | -9/Garrison | Triggered checkpoint 4005 | -9/Garrison | Discovered exit to Materials (range 3) 4111 | -9/Garrison | Entered Materials 4111 | -8/Materials | Accompanied by 3 allies 4111 | -8/Materials | Evolved 2 slots: Utility x2 4754 | -8/Materials | Discovered new exit (range 14) 4776 | -8/Materials | Entered Factory 4776 | -7/Factory | Evolved 2 slots: Utility x2 4785 | -7/Factory | Identified Decoy Drone Bay 4900 | -7/Factory | Lost 5 parts (1p3n1u) 4985 | -7/Factory | Manually triggered Chute Trap 4985 | -7/Factory | Sucked down chute 4985 | -7/Factory | Entered Waste 4988 | -7/Waste | Spotted C-40 Crusher 4988 | -7/Waste | Spotted C-40 Crusher 4995 | -7/Waste | Spotted C-40 Crusher 4999 | -7/Waste | Spotted C-40 Crusher 5015 | -7/Waste | Spotted C-40 Crusher 5018 | -7/Waste | Spotted C-40 Crusher 5020 | -7/Waste | Discovered new exit (range 14) 5025 | -7/Waste | Entered Factory 5055 | -7/Factory | Discovered new exit (range 6) 5057 | -7/Factory | Entered Lower Caves 5080 | -7/Lower Caves | Met a Warlord Commander 5081 | -7/Lower Caves | Learned location of Warlord (-4) 5082 | -7/Lower Caves | Warlord Commander delivered Encrypted Comm Array 5084 | -7/Lower Caves | Found Encrypted Comm Array 5091 | -7/Lower Caves | Learned 8 Factory zone layouts 5096 | -7/Lower Caves | Identified exit to Lower Caves 5161 | -7/Lower Caves | Build established: Hacker-Mutant 5206 | -7/Lower Caves | Entered another Lower Caves area 5257 | -7/Lower Caves | Discovered new exit (range 17) 5265 | -7/Lower Caves | Entered Zion 5289 | -7/Zion | Given the Hacking Drone Bay 5346 | -7/Zion | Learned location of 1 exit from Factory 5368 | -7/Zion | Acquired unknown access codes intercepted by a Zionite 5397 | -7/Zion | Met Imprinter 5466 | -7/Zion | Learned location of Armory (-4) 5608 | -7/Zion | Discovered new exit (range 9) 5689 | -7/Zion | Opened final containment barrier to the Deep Caves 5696 | -7/Zion | Discovered new exit (range 5) 5697 | -7/Zion | Saw the warning signs outside the Deep Caves entrance 5698 | -7/Zion | Entered Deep Caves 5714 | -7/Deep Caves | Found Surveybot 24 Chip 5716 | -7/Deep Caves | Found Surveybot 24 Scanner 5786 | -7/Deep Caves | Z-Facility disabled 5788 | -7/Deep Caves | Attacked by Z-Imprinter 5799 | -7/Deep Caves | Core integrity fell below 50% 5803 | -7/Deep Caves | Discovered new exit (range 15) 5811 | -7/Deep Caves | Entered Proximity Caves 5831 | -6/Proximity Caves | Lost 5 parts (1n2u2w) 5888 | -6/Proximity Caves | Discovered new exit (range 15) 5896 | -6/Proximity Caves | Entered Factory 5896 | -6/Factory | Evolved 2 slots: Utility x2 5897 | -6/Factory | Identified exit to Lower Caves 5974 | -6/Factory | Joined by Warlord Infantry squad 6034 | -6/Factory | Fabricated Nuclear Pulse Thruster (x2) 6113 | -6/Factory | Joined by Warlord Ghost squad 6167 | -6/Factory | Joined by Warlord Dakka squad 6195 | -6/Factory | Joined by Warlord Geek squad 6240 | -6/Factory | Build established: Hacker-Scout 6259 | -6/Factory | Learned 2 Proximity Caves zone layouts 6259 | -6/Factory | Lost 3 allies 6308 | -6/Factory | Loaded intel: 4 scanalyzer locations 6318 | -6/Factory | Repaired Lgt. Angular Momentum Engine 6345 | -6/Factory | Identified exit to Factory 6383 | -6/Factory | Learned location of 2 exits from Factory 6414 | -6/Factory | Learned Extension garrison access intel 6427 | -6/Factory | Fabricated Cld. VTOL Module (x1) 6444 | -6/Factory | Manually triggered Chute Trap 6444 | -6/Factory | Sucked down chute 6444 | -6/Factory | Entered Waste 6445 | -6/Waste | Identified exit to Factory 6448 | -6/Waste | Spotted C-40 Crusher 6448 | -6/Waste | Spotted C-40 Crusher 6472 | -6/Waste | Spotted C-40 Crusher 6473 | -6/Waste | Spotted C-40 Crusher 6476 | -6/Waste | Spotted C-40 Crusher 6477 | -6/Waste | Spotted C-40 Crusher 6494 | -6/Waste | Entered Factory 6495 | -6/Factory | Identified exit to Extension 6512 | -6/Factory | Joined by Warlord Dakka squad 6539 | -6/Factory | Discovered exit to Factory (range 21) 6627 | -6/Factory | Joined by Warlord Muscle squad 6630 | -6/Factory | Lost 4 allies 6736 | -6/Factory | Fabricated Cld. VTOL Module (x1) 6767 | -6/Factory | Discovered exit to Factory (range 7) 6775 | -6/Factory | Entered another Factory area 6775 | -5/Factory | Evolved 2 slots: Power x1, Propulsion x1 6776 | -5/Factory | Identified exit to Upper Caves 6924 | -5/Factory | Manually triggered Chute Trap 6924 | -5/Factory | Sucked down chute 6924 | -5/Factory | Entered Waste 6924 | -5/Waste | The area was eerily silent 6926 | -5/Waste | Found Prototype Device 6926 | -5/Waste | Identified Exp. Thermal Defense Suite 7023 | -5/Waste | Build established: Hacker-Sprinter 7038 | -5/Waste | Discovered new exit (range 13) 7049 | -5/Waste | Entered Factory 7197 | -5/Factory | Fabricated Adv. Hacking Suite (x1) 7223 | -5/Factory | Learned 2 Extension zone layouts 7255 | -5/Factory | Repaired Broken Q-thruster? 7258 | -5/Factory | Learned location of 1 exit from Extension 7300 | -5/Factory | Destroyed 8 combat bots 7302 | -5/Factory | Learned 2 Extension zone layouts 7308 | -5/Factory | Lost 3 parts (2p1n) 7310 | -5/Factory | Identified exit to Factory 7313 | -5/Factory | Learned Armory garrison access intel 7317 | -5/Factory | Learned location of Upper Caves (-4) 7332 | -5/Factory | Learned Extension security intel 7344 | -5/Factory | Fabricated Cld. VTOL Module (x1) 7349 | -5/Factory | First assault squad dispatched 7355 | -5/Factory | Learned location of Proximity Caves (-4) 7420 | -5/Factory | Discovered exit to Upper Caves (range 18) 7430 | -5/Factory | Entered Upper Caves 7448 | -5/Upper Caves | Learned location of 1 exit from Research 7448 | -5/Upper Caves | Learned Armory emergency access door positions 7448 | -5/Upper Caves | Learned Research security intel 7448 | -5/Upper Caves | Learned Extension garrison access intel 7481 | -5/Upper Caves | Learned location of 2 exits from Lower Caves 7513 | -5/Upper Caves | Discovered new exit (range 18) 7525 | -5/Upper Caves | Entered another Upper Caves area 7583 | -5/Upper Caves | Discovered new exit (range 18) 7589 | -5/Upper Caves | Entered Zhirov 7589 | -5/Zhirov | Discovered new exit (range 3) 7595 | -5/Zhirov | Met Zhirov 7600 | -5/Zhirov | Learned location of Quarantine (-3) 7600 | -5/Zhirov | Learned location of Testing (-2) 7600 | -5/Zhirov | Learned location of Command (-1) 7602 | -5/Zhirov | Zhirov requested help retrieving the SGEMP Prototype 7607 | -5/Zhirov | Found Alien Artifact 7607 | -5/Zhirov | Identified Integrated Dissipator 7607 | -5/Zhirov | Installed Integrated Dissipator, increased core heat dissipation (+20) 7611 | -5/Zhirov | Found Alien Artifact 7658 | -5/Zhirov | Entered Proximity Caves 7665 | -4/Proximity Caves | Learned location of 1 exit from Research 7708 | -4/Proximity Caves | Discovered exit to Factory (range 14) 7725 | -4/Proximity Caves | Entered Factory 7725 | -4/Factory | Evolved 2 slots: Propulsion x1, Utility x1 7726 | -4/Factory | Identified exit to Research 7726 | -4/Factory | Identified exit to Upper Caves 7806 | -4/Factory | Identified exit to Armory 7855 | -4/Factory | Discovered exit to Research (range 3) 7866 | -4/Factory | Fabricated Quantum Reactor? 7928 | -4/Factory | Discovered exit to Research (range 16) 7995 | -4/Factory | Learned Research security intel 8029 | -4/Factory | Fabricated Lgt. Quantum Reactor (x2) 8053 | -4/Factory | Loaded intel: 52 interactive machine locations 8129 | -4/Factory | Repaired Cld. VTOL Module? 8139 | -4/Factory | Learned Quarantine stockpile data 8148 | -4/Factory | Entered Upper Caves 8154 | -4/Upper Caves | Build established: Hacker-Ninja 8195 | -4/Upper Caves | Encountered a Warlord checkpoint 8208 | -4/Upper Caves | Discovered new exit (range 10) 8236 | -4/Upper Caves | Identified exit to Upper Caves 8236 | -4/Upper Caves | Entered another Upper Caves area 8255 | -4/Upper Caves | Discovered exit to Research (range 11) 8334 | -4/Upper Caves | Found DCF Scrap (13 items) 8351 | -4/Upper Caves | Found Alien Artifact 8351 | -4/Upper Caves | Identified Dimensional Node Initializer 8351 | -4/Upper Caves | Initialized slip node 8453 | -4/Upper Caves | Discovered new exit (range 14) 8485 | -4/Upper Caves | Identified exit to Warlord 8485 | -4/Upper Caves | Entered Warlord 8547 | -4/Warlord | Received a Watcher feed algorithm from an ecstatic Tinkerer 8647 | -4/Warlord | Met Warlord 8666 | -4/Warlord | Found Prototype Special Weapon 8666 | -4/Warlord | Identified RU-N14's Throwing Claymores v3 8669 | -4/Warlord | Found RU-N14's Throwing Claymores v3 8671 | -4/Warlord | Found RU-N14's Throwing Claymores v3 8672 | -4/Warlord | Warlord's base attacked by MAIN.C 8679 | -4/Warlord | Found Prototype Energy Gun 8679 | -4/Warlord | Identified Vortex Rifle 8682 | -4/Warlord | Found Prototype Energy Gun 8682 | -4/Warlord | Identified Vortex Rail 8711 | -4/Warlord | Found Prototype Device 8711 | -4/Warlord | Identified Exp. Phase Shifter 8716 | -4/Warlord | Found Prototype Device 8716 | -4/Warlord | Identified Thermal Barrier 8719 | -4/Warlord | Found Prototype Reactor 8719 | -4/Warlord | Identified Vortex Chain Reactor 8724 | -4/Warlord | Found Prototype Hackware 8724 | -4/Warlord | Identified System Mapper 8820 | -4/Warlord | P-70 Sage assimilated allied ES-OSO(g) 8970 | -4/Warlord | Build established: Wizard-Scout 8997 | -4/Warlord | Warlord forces counterattacked 9043 | -4/Warlord | Spotted Executioner 9055 | -4/Warlord | Allies destroyed Executioner 9128 | -4/Warlord | Spotted Striker 9130 | -4/Warlord | Spotted Striker 9137 | -4/Warlord | Allies destroyed Striker 9155 | -4/Warlord | Discovered new exit (range 12) 9157 | -4/Warlord | Identified exit to Proximity Caves 9165 | -4/Warlord | Lost 14 allies 9172 | -4/Warlord | Spotted Striker 9177 | -4/Warlord | Entered Proximity Caves 9177 | -3/Proximity Caves | Accompanied by 2 allies 9191 | -3/Proximity Caves | Spotter reported a threat 9714 | -3/Proximity Caves | Attracted the attention of an 0b10 checkpoint 9757 | -3/Proximity Caves | Discovered exit to Research (range 6) 9863 | -3/Proximity Caves | Entered Research 9863 | -3/Research | Accompanied by 1 ally 9863 | -3/Research | Evolved 2 slots: Propulsion x1, Utility x1 9864 | -3/Research | Identified exit to Quarantine 10100 | -3/Research | Build established: Wizard-Ninja 10174 | -3/Research | Identified exit to Research 10231 | -3/Research | Found Gamma Bomb Array 10304 | -3/Research | Spotted B-86 Titan 10321 | -3/Research | Entered Quarantine 10324 | -3/Quarantine | Identified Transdimensional Reconstructor 10345 | -3/Quarantine | Found Alien Artifact 10349 | -3/Quarantine | Found Dimensional Node Initializer 10353 | -3/Quarantine | Found Alien Artifact 10354 | -3/Quarantine | Found Transdimensional Reconstructor 10355 | -3/Quarantine | Found Transdimensional Reconstructor 10420 | -3/Quarantine | Found Alien Artifact 10420 | -3/Quarantine | Identified Subatomic Replicator 10439 | -3/Quarantine | Repaired Lgt. Quantum Reactor 10486 | -3/Quarantine | Initialized slip node 10511 | -3/Quarantine | Learned Research scanalyzer intel 10525 | -3/Quarantine | Found Dimensional Node Initializer 10551 | -3/Quarantine | Learned Section 7 security intel 10597 | -3/Quarantine | Found Alien Artifact 10599 | -3/Quarantine | Learned Access recycling unit intel 10607 | -3/Quarantine | Found Alien Slashing Weapon 10607 | -3/Quarantine | Identified Sigix Broadsword 10608 | -3/Quarantine | Learned Research stockpile data 10609 | -3/Quarantine | Learned 8 Section 7 zone layouts 10610 | -3/Quarantine | Learned Research emergency access door positions 10611 | -3/Quarantine | Learned Testing interactive machine intel 10622 | -3/Quarantine | Learned Testing stockpile data 10623 | -3/Quarantine | Central database locked down 10630 | -3/Quarantine | Met incapacitated Sigix Warrior 10630 | -3/Quarantine | Lockdown squad dispatched 10631 | -3/Quarantine | Acquired the access code to the Sigix quarantine chamber 10631 | -3/Quarantine | Unlocked Sigix quarantine chamber 10641 | -3/Quarantine | Learned location of Section 7 (-3) 10650 | -3/Quarantine | Found Sigix Containment Pod 10652 | -3/Quarantine | Warped through subspace to slip node 10654 | -3/Quarantine | Entered Research 10654 | -2/Research | Warlord forces began assault on 0b10 10654 | -2/Research | Evolved 2 slots: Propulsion x1, Utility x1 10655 | -2/Research | Identified exit to Testing 10659 | -2/Research | Loaded intel: 6 scanalyzer locations 10670 | -2/Research | Identified Hpw. Transdimensional Reconstructor 10720 | -2/Research | Identified exit to Access 10725 | -2/Research | Spotted B-90 Cyclops 10740 | -2/Research | Met up with Warlord 10764 | -2/Research | Research machine network offline 10767 | -2/Research | Spotted B-90 Cyclops 10885 | -2/Research | Borebot progress halted 11032 | -2/Research | Found Prototype Processor 11155 | -2/Research | Spotted B-90 Cyclops 11208 | -2/Research | Borebot progress halted 11348 | -2/Research | Borebot progress halted 11359 | -2/Research | Spotted Striker 11477 | -2/Research | Spotted Executioner 11485 | -2/Research | Spotted Striker 11509 | -2/Research | Build established: Wizard-Scout 11596 | -2/Research | Met DD-05H 11620 | -2/Research | Spotted Executioner 11620 | -2/Research | Spotted Executioner 11654 | -2/Research | Warlord invited to help at Command 11683 | -2/Research | Spotted Executioner 11684 | -2/Research | Spotted Executioner 11684 | -2/Research | Entered Testing 11686 | -2/Testing | Loaded intel: 17 interactive machine locations 11699 | -2/Testing | Found Prototype Device 11699 | -2/Testing | Identified Exp. Hardlight Generator 11708 | -2/Testing | Central database locked down 11776 | -2/Testing | Found Prototype Ballistic Cannon 11776 | -2/Testing | Identified Perforator 11787 | -2/Testing | Found Prototype Hackware 11787 | -2/Testing | Identified Ghost Barrier 11891 | -2/Testing | Found Prototype Device 11893 | -2/Testing | Identified Beam Splitter 11926 | -2/Testing | Fabricated Exp. Optical Array (x1) 11927 | -2/Testing | Learned location of 1 exit from Research 11934 | -2/Testing | Search patrols dispatched 11988 | -2/Testing | Learned Research stockpile data 12003 | -2/Testing | Build established: Wizard-Ninja 12010 | -2/Testing | Learned location of 1 exit from Research 12011 | -2/Testing | Learned Research interactive machine intel 12012 | -2/Testing | Learned Access trap positions 12013 | -2/Testing | Learned Access scanalyzer intel 12020 | -2/Testing | Learned Access emergency access door positions 12037 | -2/Testing | Learned 4 Access zone layouts 12063 | -2/Testing | Learned Research repair station intel 12141 | -2/Testing | Entered Access 12141 | -1/Access | Evolved 2 slots: Propulsion x1, Utility x1 12143 | -1/Access | Loaded intel: 68 trap records 12145 | -1/Access | Loaded intel: 4 recycling unit locations 12146 | -1/Access | Loaded intel: 4 scanalyzer locations 12253 | -1/Access | Crushed by falling debris 12415 | -1/Access | Warped through subspace 12425 | -1/Access | Spotted B-99 Colossus 12498 | -1/Access | Spotted B-99 Colossus 12527 | -1/Access | Build established: Wizard-Scout 12532 | -1/Access | Discovered new exit (range 8) 12533 | -1/Access | Identified exit to Command 12534 | -1/Access | Entered Command 12580 | -1/Command | Spotted M Guard 12580 | -1/Command | Spotted M Guard 12580 | -1/Command | Spotted Combat Programmer 12582 | -1/Command | Spotted Combat Programmer 12585 | -1/Command | Failed to warp due to unstable space 12586 | -1/Command | System corruption reached 10% 12617 | -1/Command | Used Subatomic Replicator to replicate Sigix Containment Pod 12628 | -1/Command | Core integrity fell below 50% 12630 | -1/Command | Core integrity fell below 20% 12630 | -1/Command | Destroyed by X-87 Electro with Compact HERF Cannon Last Messages --------------- 12627_ H-88 Terminator unfolds itself. 12627_ C-30 ARC springs to life. 12627_ C-30 ARC bursts open, deploying its payload. 12627_ S-43 Plague unfolds itself. 12627_ X-87 Electro springs to life. 12627_ E-15 Imp springs to life. 12627_ C-30 ARC springs to life. 12627_ C-30 ARC bursts open, deploying its payload. 12627_ P-80 Master unfolds itself. 12628_ P-80 Master resets G-73 Enforcer, system corruption cleaned. 12629_ P-80 Master resets S-43 Plague, system corruption cleaned. 12630_ Adv. Hacking Suite blown off. 12630_ System Mapper blown off. 12630_ Adv. Hacking Suite blown off. 12630_ E-15 Imp destroyed. 12630_ S-43 Plague misfires. Map ----- +----------------------------------------------------+ | ??????????????????????????????? # #??????????? | | ??????????????????????????????? # #??????????? | | ??????????????????????????????? # #??????????? | | ??????????????????????????????? # #??????????? | | ??????????????????????????????? # #??????????? | | ??????????????????????????????? # #??????????? | | ?????????????????????????????? ### ##??????????? | | ?????????????????????????????? #?# #???????????? | | ?????????????????????????????? #?# #???????????? | | ?????????????????????????????? #?# #???????????? | | ????????????????????????? ??? #?# #????#??????? | | ????????????????????????? ??? #?# #??? #??????? | | ????????????????????????? ??? #?# #?? #??????? | | ???????????????????????##++###//###"+###//#######? | | ???????????????????????# s #? | | ???????????????????????# p =%= #? | | ???????????????????????# pp * #? | | ???????????????????????#! bp #? | | ???????????????????????##+p###//###""###//#######? | | ????????????????????????#p #??????# #???????????? | | ????????????????????????#ll#??????# #???????????? | | ????????????????????????#c #??????# #???????????? | | ????????????????????????#gg#??????# #???????????? | | ????????????????????????#gs#??????# #???????????? | | ????????????????????????#cs#??????# #???????????? | | ????????????????????????#@s#??????# #???????????? | | ???????????????????????#x%gp#????? ???????????? | | ???????????????????????#xgpg#????? ???????????? | | ???????????????????????#xhs%#????? #??????????? | | ???????????????????????#xeph#????? #??????????? | | ???????????????????????#xehh#????? #??????????? | | ???????????????????????#xesh#????? #??????????? | | ???????????????????????######?????#####??????????? | | ?????????????????????????????????????????????????? | | ?????????????????????????????????????????????????? | | ?????????????????????????????????????????????????? | | ?????????????????????????????????????????????????? | | ?????????????????????????????????????????????????? | | ?????????????????????????????????????????????????? | | ?????????????????????????????????????????????????? | | ?????????????????????????????????????????????????? | | ?????????????????????????????????????????????????? | | ?????????????????????????????????????????????????? | | ?????????????????????????????????????????????????? | | ?????????????????????????????????????????????????? | | ?????????????????????????????????????????????????? | | | | | | | | | +----------------------------------------------------+ Best States ------------- Heat Dissipation 103 Energy Generation 55 Energy Capacity 700 Matter Stores 300 Matter Capacity 300 Sight Range 23 Robot Scan Range 18 Terrain Scan Range 24 Terrain Scan Density 2010 Jamming Range 16 Armor Coverage 450 Weapon Shielding 90 Evasion (%) 66 Recoil Reduction 4 Offensive Hacking 49 Defensive Hacking 26 Authchip Count 1 Item Schematics ----------------- Hover Unit | -10/Materials | Hacked Nuclear Pulse Thruster | -7/Zion | Archive Adv. Terrain Scan Processor | -7/Zion | Archive Imp. Plasma Cutter | -7/Zion | Archive Gauss Rifle | -7/Zion | Archive Thermic Laser | -7/Zion | Archive Imp. Trap Extractor | -7/Zion | Archive Thermal Shield | -7/Zion | Archive Hvy. Ion Cannon | -7/Zion | Archive Power Sword | -7/Zion | Archive Gauss Cannon | -7/Zion | Archive Adv. System Restoration Module | -7/Zion | Archive Hvy. Flak Cannon | -7/Zion | Archive Plasma Cannon | -7/Zion | Archive Powered Hammer | -7/Zion | Archive Adv. Signal Interpreter | -7/Zion | Archive Riot Gun | -7/Zion | Free Battle Cannon | -7/Zion | Free Barrage Gun | -7/Zion | Free Adv. Hacking Suite | -6/Factory | Scanalyzed Cld. VTOL Module | -6/Factory | Hacked Cmb. Airjet | -6/Factory | Hacked Imp. Gravmag System | -6/Factory | Hacked Micro-nuke Launcher | -6/Factory | Hacked Imp. System Shield | -6/Factory | Hacked Q-thruster | -5/Factory | Scanalyzed Assault Drone Bay | -5/Zhirov | Free Exp. Heat Sink | -5/Zhirov | Free Exp. Optical Array | -5/Zhirov | Free Imp. Arc Thrower | -5/Zhirov | Free Lgt. Quantum Reactor | -4/Factory | Hacked Force Lance | -4/Factory | Hacked Lgt. Antimatter Reactor | -4/Factory | Hacked Biometal Heavy Treads | -4/Factory | Hacked Exp. Gyrokinetic Inverter | -3/Research | Hacked Exp. Hacking Suite | -3/Research | Hacked Diametric Drive | -3/Quarantine | Scanalyzed Adv. Target Analyzer | -3/Quarantine | Scanalyzed Linear Accelerator | -3/Quarantine | Hacked Enh. Nova Cannon | -2/Research | Hacked Adv. Heavy Siege Treads | -2/Research | Hacked Centrium Leg | -2/Research | Hacked Cmb. Linear Gravjet | -2/Testing | Hacked Imp. Quantum Reactor | -2/Testing | Hacked Enh. Gamma Bomb Array | -2/Testing | Hacked Enh. Quantum Rifle | -2/Testing | Hacked Exp. Q-thruster | -2/Testing | Hacked Cld. Q-thruster | -2/Testing | Scanalyzed Energy Mantle | -2/Testing | Archive Imp. KE Penetrator | -2/Testing | Archive Adv. Quantum Shading Machine | -2/Testing | Scanalyzed Robot Schematics ------------------ D-83 Annihilator | -7/Zion | Archive L-41 Fighter | -7/Zion | Archive Y-54 Guardian | -7/Zion | Archive W-25 Informer | -7/Zion | Archive M-30 Cleanser | -2/Testing | Hacked T-07 Excavator | -2/Testing | Archive Fabricated ------------ Nuclear Pulse Thruster | x2 | -6/Factory | Authchip Cld. VTOL Module | x1 | -6/Factory Cld. VTOL Module | x1 | -6/Factory Adv. Hacking Suite | x1 | -5/Factory Cld. VTOL Module | x1 | -5/Factory | Authchip Quantum Reactor | x2 | -4/Factory | Preloaded Lgt. Quantum Reactor | x2 | -4/Factory Exp. Optical Array | x1 | -2/Testing Alien Tech Used ----------------- Integrated Dissipator Dimensional Node Initializer Subatomic Replicator Sigix Broadsword Transdimensional Reconstructor High-powered Transdimensional Reconstructor Achievements -------------- None Challenges ------------ None Game ------ Seed TargetVoltaicBattery Manual? 0 Play Time 04:07:36 Cumulative 382.9 hours Start 2024.09.29 @ 15:38:22 End 2024.09.30 @ 21:36:34 Sessions 7 Manual Loads 0 Difficulty Rogue Special Mode None Game No. 381 Rogue 376 Adventurer 5 Explorer 0 Win Type - Total 8 Types 5/0/0/3/0/0/0/0/0 Lore% 79 Gallery% 84 Achievement% 71 Wizard Run 0 Options --------- Layout 1 ASCII 0 Keyboard 0 Movement Mouse Keybinds 0 Fullscreen 1 Font 24/Terminus Map View 50x35 Zoom Use 0% Tactical HUD 1 Map Filters NONE Filters NONE Steam 1 RUN: d74ae07f-da7b-4f70-83fe-a9b688bf883e